Workbook

Sheet Equipe
A1: Manutenção Civil
A2: PLANILHA ORÇAMENTÁRIA
A5: ITEM | B5: CÓD SINFRA | C5: DESCRIÇÃO | D5: UN | E5: QUANTIDADE | F5: PREÇO UNITÁRIO MENSAL (R$) | G5: PREÇO TOTAL MENSAL (R$) | H5: PREÇO TOTAL GLOBAL PARA 30 MESES (R$)
A6: 1.1.1 | B6: SF-00708 | C6: Supervisor(a)-Geral | D6: Profissional | E6: 1 | F6: 18915.62 | G6: =E6*F6 -> 18915.62 | H6: =G6*30 -> 567468.6
A7: 1.1.2 | B7: SF-01041 | C7: Supervisor de Obras e Manutenção – Apoio de campo – Segurança do Trabalho | D7: Profissional | E7: 1 | F7: 8809.75 | G7: =E7*F7 -> 8809.75 | H7: =G7*30 -> 264292.5
A8: 1.1.3 | B8: SF-01102 | C8: Técnico(a) em Edificações - Planejamento de Manutenção | D8: Profissional | E8: 2 | F8: 8809.75 | G8: 17619.5 | H8: 528585
A9: 1.1.4 | B9: SF-00716 | C9: Mestre de Obras (Posto de Trabalho) | D9: Profissional | E9: 3 | F9: 11584.38 | G9: 34753.14 | H9: 1042594.2
A10: 1.1.5 | B10: SF-00717 | C10: Oficial de Serviços Gerais | D10: Profissional | E10: 13 | F10: 4876.05 | G10: 63388.65 | H10: 1901659.5
A11: 1.1.6 | B11: SF-00710 | C11: Ajudante de Serviços Gerais | D11: Profissional | E11: 9 | F11: 3699.09 | G11: 33291.81 | H11: 998754.3
A12: 1.1.7 | B12: SF-00709 | C12: Apoio Técnico Administrativo – Controle de Almoxarifado | D12: Profissional | E12: 2 | F12: 4960.81 | G12: 9921.62 | H12: 297648.6
H13: =SUM(H6:H12) -> 5601002.7

Sheet Orçamentária-TR
A1: Manutenção Civil
A2: PLANILHA ORÇAMENTÁRIA
A5: ITEM | B5: CÓD SINFRA | C5: DESCRIÇÃO | D5: UN | E5: QUANTIDADE | F5: FATOR K ESTIMADO¹ | G5: FATOR DE UTILIZAÇÃO² | H5: VIDA ÚTIL (Anos)³ | I5: % DE DEPRECIAÇÃO MENSAL³ | J5: CUSTO UNITÁRIO4 | K5: CUSTO DIRETO | L5: BDI (%) | M5: VALOR MENSAL DE DEPRECIAÇÃO³ | N5: VALOR TOTAL DE DEPRECIAÇÃO PARA 30 MESES³ | O5: PREÇO UNITÁRIO COM BDI | P5: CUSTO TOTAL
A6: 1.2 | C6: Uniformes e EPIs | K6: =SUBTOTAL(109,K7:K23) -> 65350.23 | P6: =SUBTOTAL(109,P7:P27) -> 70096.47
A7: 1.2.1 | B7: SF-00823 | C7: Camisa polo manga curta com logotipo da empresa na frente e indicação da categoria profissional nas costas | D7: pç | E7: 40 | J7: 31.24 | K7: =IF(ISNUMBER(J7),ROUND(E7*J7,2),"") -> 1249.6 | P7: =K7 -> 1249.6
A8: 1.2.2 | B8: SF-00824 | C8: Camisa polo manga longa com logotipo da empresa na frente e indicação da categoria profissional nas costas | D8: pç | E8: 270 | J8: 35 | K8: =IF(ISNUMBER(J8),ROUND(E8*J8,2),"") -> 9450 | P8: =K8 -> 9450
A9: 1.2.3 | B9: SF-00825 | C9: Calças de material resistente e cor escura | D9: pç | E9: 310 | J9: 38.54 | K9: =IF(ISNUMBER(J9),ROUND(E9*J9,2),"") -> 11947.4 | P9: 11947.4
A10: 1.2.4 | B10: SF-00826 | C10: Gorros com pala (boné) na mesma cor da camisa | D10: pç | E10: 135 | J10: 19 | K10: =IF(ISNUMBER(J10),ROUND(E10*J10,2),"") -> 2565 | P10: 2565
A11: 1.2.5 | B11: SF-00827 | C11: Bota com solado de borracha | D11: par | E11: 155 | J11: 83.18 | K11: =IF(ISNUMBER(J11),ROUND(E11*J11,2),"") -> 12892.9 | P11: 12892.9
A12: 1.2.6 | B12: SF-00828 | C12: Bota de borracha de cano longo | D12: par | E12: 31 | J12: 43.77 | K12: =IF(ISNUMBER(J12),ROUND(E12*J12,2),"") -> 1356.87 | P12: 1356.87
A13: 1.2.7 | B13: SF-00829 | C13: Capa de chuva | D13: pç | E13: 62 | J13: 128.8 | K13: =IF(ISNUMBER(J13),ROUND(E13*J13,2),"") -> 7985.6 | P13: 7985.6
A14: 1.2.8 | B14: SF-00830 | C14: Capacete de segurança | D14: pç | E14: 31 | J14: 39.35 | K14: =IF(ISNUMBER(J14),ROUND(E14*J14,2),"") -> 1219.85 | P14: 1219.85
A15: 1.2.9 | B15: SF-00831 | C15: Cinto de segurança tipo paraquedista | D15: pç | E15: 4 | J15: 683.47 | K15: =IF(ISNUMBER(J15),ROUND(E15*J15,2),"") -> 2733.88 | P15: 2733.88
A16: 1.2.10 | B16: SF-00832 | C16: Lanterna profissional | D16: pç | E16: 4 | J16: 177.27 | K16: =IF(ISNUMBER(J16),ROUND(E16*J16,2),"") -> 709.08 | P16: 709.08
A17: 1.2.11 | B17: SF-00833 | C17: Lanterna para capacete | D17: pç | E17: 4 | J17: 70.69 | K17: =IF(ISNUMBER(J17),ROUND(E17*J17,2),"") -> 282.76 | P17: 282.76
A18: 1.2.12 | B18: SF-00834 | C18: Luva de borracha | D18: par | E18: 27 | J18: 243.07 | K18: =IF(ISNUMBER(J18),ROUND(E18*J18,2),"") -> 6562.89 | P18: 6562.89
A19: 1.2.13 | B19: SF-00835 | C19: Máscara de proteção respiratória com válvula e com película de carbono FFP2 | D19: pç | E19: 155 | J19: 5 | K19: =IF(ISNUMBER(J19),ROUND(E19*J19,2),"") -> 775 | P19: 775
A20: 1.2.14 | B20: SF-00836 | C20: Óculos de segurança com proteção lateral total | D20: pç | E20: 155 | J20: 9.08 | K20: =IF(ISNUMBER(J20),ROUND(E20*J20,2),"") -> 1407.4 | P20: 1407.4
A21: 1.2.15 | B21: SF-00837 | C21: Protetor auditivo flexível de inserção | D21: pç | E21: 310 | J21: 2.9 | K21: =IF(ISNUMBER(J21),ROUND(E21*J21,2),"") -> 899 | P21: 899
A22: 1.2.16 | B22: SF-00838 | C22: Protetor Facial | D22: pç | E22: 10 | J22: 225.2 | K22: =IF(ISNUMBER(J22),ROUND(E22*J22,2),"") -> 2252 | P22: 2252
A23: 1.2.17 | B23: SF-00839 | C23: Talabarte de Posicionamento (Restrição de Movimento) | D23: pç | E23: 4 | J23: 265.25 | K23: =IF(ISNUMBER(J23),ROUND(E23*J23,2),"") -> 1061 | P23: 1061
A24: 1.2.18 | B24: SF-00840 | C24: Talabarte em Y | D24: pç | E24: 4 | J24: 302.77 | K24: =IF(ISNUMBER(J24),ROUND(E24*J24,2),"") -> 1211.08 | P24: 1211.08
A25: 1.2.19 | B25: SF-00841 | C25: Travaquedas Deslizante Para Corda | D25: pç | E25: 4 | J25: 291.54 | K25: =IF(ISNUMBER(J25),ROUND(E25*J25,2),"") -> 1166.16 | P25: 1166.16
A26: 1.2.20 | B26: SF-00842 | C26: Travaquedas Deslizante Para Cabo de Aço | D26: pç | E26: 4 | J26: 348.86 | K26: =IF(ISNUMBER(J26),ROUND(E26*J26,2),"") -> 1395.44 | P26: 1395.44
A27: 1.2.21 | B27: SF-00843 | C27: Uniforme Antichamas de Proteção Contra Arcos Elétricos | D27: pç | E27: 4 | J27: 243.39 | K27: =IF(ISNUMBER(J27),ROUND(E27*J27,2),"") -> 973.56 | P27: 973.56
A28: 2 | C28: Serviços Sob Demanda | K28: =SUBTOTAL(109,K29:K274) -> 6553614.39 | P28: =SUBTOTAL(109,P29:P274) -> 7805375.76
A29: 2.1 | C29: Serviços de Apoio | K29: =SUBTOTAL(109,K30:K46) -> 210392.44 | P29: =SUBTOTAL(109,P30:P46) -> 250555.88
A30: 2.1.1 | B30: SF-00941 | C30: Plataforma de trabalho aéreo tesoura | D30: dia | E30: 315 | G30: 0.3 | J30: 326.67 | K30: =IF(ISNUMBER(J30),ROUND(G30*E30*J30,2),"") -> 30870.32 | L30: =BDI!$B$18 -> 0.191 | O30: =IF(ISNUMBER(J30),ROUND(J30*(1+L30),2),"") -> 389.06 | P30: =IF(ISNUMBER(J30),ROUND(G30*O30*E30,2),"") -> 36766.17
A31: 2.1.2 | B31: SF-00821 | C31: Plataforma de trabalho aéreo articulada | D31: dia | E31: 315 | G31: 0.3 | J31: 521.43 | K31: =IF(ISNUMBER(J31),ROUND(G31*E31*J31,2),"") -> 49275.14 | L31: =BDI!$B$18 -> 0.191 | O31: 621.02 | P31: =IF(ISNUMBER(J31),ROUND(G31*O31*E31,2),"") -> 58686.39
A32: 2.1.3 | B32: SF-00948 | C32: Locação de andaime suspenso tipo leve | D32: un x mês | E32: 3 | G32: 0.3 | J32: =OFFSET(INDEX(Composições!A:H,MATCH('Orçamentária-TR'!B32,Composições!A:A,0),8),2,0) -> 522.5 | K32: =IF(ISNUMBER(J32),ROUND(G32*E32*J32,2),"") -> 470.25 | L32: =BDI!$B$18 -> 0.191 | O32: 622.3 | P32: =IF(ISNUMBER(J32),ROUND(G32*O32*E32,2),"") -> 560.07
A33: 2.1.4 | B33: SF-00995 | C33: Montagem e desmontagem de andaime suspenso tipo leve (balancim) | D33: un | E33: 10 | G33: 0.3 | J33: 600 | K33: =IF(ISNUMBER(J33),ROUND(G33*E33*J33,2),"") -> 1800 | L33: =BDI!$B$18 -> 0.191 | O33: 714.6 | P33: =IF(ISNUMBER(J33),ROUND(G33*O33*E33,2),"") -> 2143.8
A34: 2.1.5 | B34: SF-00996 | C34: Deslocamento de andaime suspenso tipo leve (balancim) | D34: un | E34: 10 | G34: 0.3 | J34: 400 | K34: =IF(ISNUMBER(J34),ROUND(G34*E34*J34,2),"") -> 1200 | L34: =BDI!$B$18 -> 0.191 | O34: 476.4 | P34: =IF(ISNUMBER(J34),ROUND(G34*O34*E34,2),"") -> 1429.2
A35: 2.1.6 | B35: SF-00048 | C35: Andaime fachadeiro | D35: m2 x mês | E35: 3400 | G35: 0.3 | J35: =OFFSET(INDEX(Composições!A:H,MATCH('Orçamentária-TR'!B35,Composições!A:A,0),8),2,0) -> 3.7905 | K35: =IF(ISNUMBER(J35),ROUND(G35*E35*J35,2),"") -> 3866.31 | L35: =BDI!$B$18 -> 0.191 | O35: 4.51 | P35: =IF(ISNUMBER(J35),ROUND(G35*O35*E35,2),"") -> 4600.2
A36: 2.1.7 | B36: SF-00937 | C36: Montagem e desmontagem de andaime fachadeiro | D36: m2 | E36: 3400 | G36: 0.3 | J36: =OFFSET(INDEX(Composições!A:H,MATCH('Orçamentária-TR'!B36,Composições!A:A,0),8),2,0) -> 7.355012709 | K36: =IF(ISNUMBER(J36),ROUND(G36*E36*J36,2),"") -> 7502.11 | L36: =BDI!$B$18 -> 0.191 | O36: 8.76 | P36: =IF(ISNUMBER(J36),ROUND(G36*O36*E36,2),"") -> 8935.2
A37: 2.1.8 | B37: SF-00049 | C37: Andaime tubular (aluguel/mês) | D37: m x mês | E37: 120 | G37: 0.3 | J37: =OFFSET(INDEX(Composições!A:H,MATCH('Orçamentária-TR'!B37,Composições!A:A,0),8),2,0) -> 11.4 | K37: =IF(ISNUMBER(J37),ROUND(G37*E37*J37,2),"") -> 410.4 | L37: =BDI!$B$18 -> 0.191 | O37: 13.58 | P37: =IF(ISNUMBER(J37),ROUND(G37*O37*E37,2),"") -> 488.88
A38: 2.1.9 | B38: SF-00938 | C38: Montagem e desmontagem de andaime tubular | D38: m | E38: 120 | G38: 0.3 | J38: =OFFSET(INDEX(Composições!A:H,MATCH('Orçamentária-TR'!B38,Composições!A:A,0),8),2,0) -> 13.60470764 | K38: =IF(ISNUMBER(J38),ROUND(G38*E38*J38,2),"") -> 489.77 | L38: =BDI!$B$18 -> 0.191 | O38: 16.2 | P38: =IF(ISNUMBER(J38),ROUND(G38*O38*E38,2),"") -> 583.2
A39: 2.1.10 | B39: SF-00068 | C39: Sistema Guarda-corpo-Rodapé (GcR) metálico | D39: m x mês | E39: 1300 | G39: 0.3 | J39: 9 | K39: =IF(ISNUMBER(J39),ROUND(G39*E39*J39,2),"") -> 3510 | L39: =BDI!$B$18 -> 0.191 | O39: 10.72 | P39: =IF(ISNUMBER(J39),ROUND(G39*O39*E39,2),"") -> 4180.8
A40: 2.1.11 | B40: SF-01103 | C40: Locação de Retroescavadeira com Pá Carregadeira sobre Rodas | D40: dia | E40: 20 | G40: 0.3 | J40: 1300 | K40: =IF(ISNUMBER(J40),ROUND(G40*E40*J40,2),"") -> 7800 | L40: =BDI!$B$18 -> 0.191 | O40: 1548.3 | P40: =IF(ISNUMBER(J40),ROUND(G40*O40*E40,2),"") -> 9289.8
A41: 2.1.12 | B41: SF-00985 | C41: Locação de Caminhão Munck | D41: dia | E41: 30 | G41: 0.3 | J41: 900 | K41: =IF(ISNUMBER(J41),ROUND(G41*E41*J41,2),"") -> 8100 | L41: =BDI!$B$18 -> 0.191 | O41: 1071.9 | P41: =IF(ISNUMBER(J41),ROUND(G41*O41*E41,2),"") -> 9647.1
A42: 2.1.13 | B42: SF-01104 | C42: Projeto de Impermeabilização | D42: m2 | E42: 16000 | G42: 0.3 | J42: =OFFSET(INDEX(Composições!A:H,MATCH('Orçamentária-TR'!B42,Composições!A:A,0),8),2,0) -> 9.45725 | K42: =IF(ISNUMBER(J42),ROUND(G42*E42*J42,2),"") -> 45394.8 | L42: =BDI!$B$18 -> 0.191 | O42: 11.26 | P42: =IF(ISNUMBER(J42),ROUND(G42*O42*E42,2),"") -> 54048
A43: 2.1.14 | B43: SF-00015 | C43: Locação de caçambas | D43: un | E43: 375 | G43: 0.3 | J43: 286.32 | K43: =IF(ISNUMBER(J43),ROUND(G43*E43*J43,2),"") -> 32211 | L43: =BDI!$B$18 -> 0.191 | O43: 341.01 | P43: =IF(ISNUMBER(J43),ROUND(G43*O43*E43,2),"") -> 38363.63
A44: 2.1.15 | B44: SF-01075 | C44: Sondagem | D44: un | E44: 20 | G44: 0.3 | J44: 500 | K44: =IF(ISNUMBER(J44),ROUND(G44*E44*J44,2),"") -> 3000 | L44: =BDI!$B$18 -> 0.191 | O44: 595.5 | P44: =IF(ISNUMBER(J44),ROUND(G44*O44*E44,2),"") -> 3573
A45: 2.1.16 | B45: SF-01223 | C45: Sondagem - Perfuração adicional de furo | D45: m | E45: 100 | G45: 0.3 | J45: 58 | K45: =IF(ISNUMBER(J45),ROUND(G45*E45*J45,2),"") -> 1740 | L45: =BDI!$B$18 -> 0.191 | O45: 69.08 | P45: =IF(ISNUMBER(J45),ROUND(G45*O45*E45,2),"") -> 2072.4
A46: 2.1.17 | B46: SF-00004 | C46: Projetos de segurança do trabalho | D46: un | E46: 20 | G46: 0.3 | J46: =OFFSET(INDEX(Composições!A:H,MATCH('Orçamentária-TR'!B46,Composições!A:A,0),8),2,0) -> 2125.39 | K46: =IF(ISNUMBER(J46),ROUND(G46*E46*J46,2),"") -> 12752.34 | L46: =BDI!$B$18 -> 0.191 | O46: 2531.34 | P46: =IF(ISNUMBER(J46),ROUND(G46*O46*E46,2),"") -> 15188.04
A47: 2.2 | C47: Serviços de Manutençao nos Sistemas de Revestimentos | K47: =SUBTOTAL(109,K48:K78) -> 377697.36 | P47: =SUBTOTAL(109,P48:P78) -> 449840.58
A48: 2.2.1 | B48: SF-00091 | C48: Chapisco com argamassa traço 1:3 | D48: m2 | E48: 1380 | G48: 0.3 | J48: =OFFSET(INDEX(Composições!A:H,MATCH('Orçamentária-TR'!B48,Composições!A:A,0),8),2,0) -> 3.559510186 | K48: =IF(ISNUMBER(J48),ROUND(G48*E48*J48,2),"") -> 1473.64 | L48: =BDI!$B$18 -> 0.191 | O48: =IF(ISNUMBER(J48),ROUND(J48*(1+L48),2),"") -> 4.24 | P48: =IF(ISNUMBER(J48),ROUND(G48*O48*E48,2),"") -> 1755.36
A49: 2.2.2 | B49: SF-00093 | C49: Reboco com argamassa industrializada e=2,0 cm | D49: m2 | E49: 1380 | G49: 0.3 | J49: =OFFSET(INDEX(Composições!A:H,MATCH('Orçamentária-TR'!B49,Composições!A:A,0),8),2,0) -> 31.7567558 | K49: =IF(ISNUMBER(J49),ROUND(G49*E49*J49,2),"") -> 13147.3 | L49: =BDI!$B$18 -> 0.191 | O49: 37.82 | P49: =IF(ISNUMBER(J49),ROUND(G49*O49*E49,2),"") -> 15657.48
A50: 2.2.3 | B50: SF-00106 | C50: Contrapiso em argamassa (e=2cm) ou Regularização de contrapiso existente | D50: m2 | E50: 450 | G50: 0.3 | J50: =OFFSET(INDEX(Composições!A:H,MATCH('Orçamentária-TR'!B50,Composições!A:A,0),8),2,0) -> 29.36813422 | K50: =IF(ISNUMBER(J50),ROUND(G50*E50*J50,2),"") -> 3964.7 | L50: =BDI!$B$18 -> 0.191 | O50: 34.98 | P50: =IF(ISNUMBER(J50),ROUND(G50*O50*E50,2),"") -> 4722.3
A51: 2.2.4 | B51: SF-01105 | C51: Laminado decorativo de alta pressão (LDAP) | D51: m2 | E51: 180 | G51: 0.3 | J51: =OFFSET(INDEX(Composições!A:H,MATCH('Orçamentária-TR'!B51,Composições!A:A,0),8),2,0) -> 91.021305 | K51: =IF(ISNUMBER(J51),ROUND(G51*E51*J51,2),"") -> 4915.15 | L51: =BDI!$B$18 -> 0.191 | O51: 108.41 | P51: =IF(ISNUMBER(J51),ROUND(G51*O51*E51,2),"") -> 5854.14
A52: 2.2.5 | B52: SF-00104 | C52: Cerâmica para revestimento de superfícies internas ou externas – Linha Administrativa | D52: m2 | E52: 860 | G52: 0.3 | J52: =OFFSET(INDEX(Composições!A:H,MATCH('Orçamentária-TR'!B52,Composições!A:A,0),8),2,0) -> 68.20126 | K52: =IF(ISNUMBER(J52),ROUND(G52*E52*J52,2),"") -> 17595.93 | L52: =BDI!$B$18 -> 0.191 | O52: 81.23 | P52: =IF(ISNUMBER(J52),ROUND(G52*O52*E52,2),"") -> 20957.34
A53: 2.2.6 | B53: SF-00107 | C53: Granito cinza andorinha para piso | D53: m2 | E53: 420 | G53: 0.3 | J53: =OFFSET(INDEX(Composições!A:H,MATCH('Orçamentária-TR'!B53,Composições!A:A,0),8),2,0) -> 249.932112 | K53: =IF(ISNUMBER(J53),ROUND(G53*E53*J53,2),"") -> 31491.45 | L53: =BDI!$B$18 -> 0.191 | O53: 297.67 | P53: =IF(ISNUMBER(J53),ROUND(G53*O53*E53,2),"") -> 37506.42
A54: 2.2.7 | B54: SF-00108 | C54: Granito Cinza Andorinha para rodapé | D54: m2 | E54: 200 | G54: 0.3 | J54: =OFFSET(INDEX(Composições!A:H,MATCH('Orçamentária-TR'!B54,Composições!A:A,0),8),2,0) -> 623.245913 | K54: =IF(ISNUMBER(J54),ROUND(G54*E54*J54,2),"") -> 37394.75 | L54: =BDI!$B$18 -> 0.191 | O54: 742.29 | P54: =IF(ISNUMBER(J54),ROUND(G54*O54*E54,2),"") -> 44537.4
A55: 2.2.8 | B55: SF-00109 | C55: Granito Cinza Andorinha para soleira e peitoril | D55: m2 | E55: 100 | G55: 0.3 | J55: =OFFSET(INDEX(Composições!A:H,MATCH('Orçamentária-TR'!B55,Composições!A:A,0),8),2,0) -> 413.7167924 | K55: =IF(ISNUMBER(J55),ROUND(G55*E55*J55,2),"") -> 12411.5 | L55: =BDI!$B$18 -> 0.191 | O55: 492.74 | P55: =IF(ISNUMBER(J55),ROUND(G55*O55*E55,2),"") -> 14782.2
A56: 2.2.9 | B56: SF-00110 | C56: Granito Preto São Gabriel para piso | D56: m2 | E56: 60 | G56: 0.3 | J56: =OFFSET(INDEX(Composições!A:H,MATCH('Orçamentária-TR'!B56,Composições!A:A,0),8),2,0) -> 365.932112 | K56: =IF(ISNUMBER(J56),ROUND(G56*E56*J56,2),"") -> 6586.78 | L56: =BDI!$B$18 -> 0.191 | O56: 435.83 | P56: =IF(ISNUMBER(J56),ROUND(G56*O56*E56,2),"") -> 7844.94
A57: 2.2.10 | B57: SF-00111 | C57: Granito Preto São Gabriel para rodapé | D57: m2 | E57: 20 | G57: 0.3 | J57: =OFFSET(INDEX(Composições!A:H,MATCH('Orçamentária-TR'!B57,Composições!A:A,0),8),2,0) -> 758.576023 | K57: =IF(ISNUMBER(J57),ROUND(G57*E57*J57,2),"") -> 4551.46 | L57: =BDI!$B$18 -> 0.191 | O57: 903.46 | P57: =IF(ISNUMBER(J57),ROUND(G57*O57*E57,2),"") -> 5420.76
A58: 2.2.11 | B58: SF-00112 | C58: Granito Preto São Gabriel para soleira e peitoril | D58: m2 | E58: 20 | G58: 0.3 | J58: =OFFSET(INDEX(Composições!A:H,MATCH('Orçamentária-TR'!B58,Composições!A:A,0),8),2,0) -> 499.3838874 | K58: =IF(ISNUMBER(J58),ROUND(G58*E58*J58,2),"") -> 2996.3 | L58: =BDI!$B$18 -> 0.191 | O58: 594.77 | P58: =IF(ISNUMBER(J58),ROUND(G58*O58*E58,2),"") -> 3568.62
A59: 2.2.12 | B59: SF-01106 | C59: Granito Preto Absoluto para revestimento de superfícies internas e externas - Linha Administrativa | D59: m2 | E59: 130 | G59: 0.3 | J59: =OFFSET(INDEX(Composições!A:H,MATCH('Orçamentária-TR'!B59,Composições!A:A,0),8),2,0) -> 686.092112 | K59: =IF(ISNUMBER(J59),ROUND(G59*E59*J59,2),"") -> 26757.59 | L59: =BDI!$B$18 -> 0.191 | O59: 817.14 | P59: =IF(ISNUMBER(J59),ROUND(G59*O59*E59,2),"") -> 31868.46
A60: 2.2.13 | B60: SF-00114 | C60: Mármore Bege Bahia para piso e parede | D60: m2 | E60: 30 | G60: 0.3 | J60: =OFFSET(INDEX(Composições!A:H,MATCH('Orçamentária-TR'!B60,Composições!A:A,0),8),2,0) -> 319.532112 | K60: =IF(ISNUMBER(J60),ROUND(G60*E60*J60,2),"") -> 2875.79 | L60: =BDI!$B$18 -> 0.191 | O60: 380.56 | P60: =IF(ISNUMBER(J60),ROUND(G60*O60*E60,2),"") -> 3425.04
A61: 2.2.14 | B61: SF-01107 | C61: Granito Arabesco para revestimento de superfícies internas e externas - Linha Administrativa | D61: m2 | E61: 30 | G61: 0.3 | J61: =OFFSET(INDEX(Composições!A:H,MATCH('Orçamentária-TR'!B61,Composições!A:A,0),8),2,0) -> 281.194112 | K61: =IF(ISNUMBER(J61),ROUND(G61*E61*J61,2),"") -> 2530.75 | L61: =BDI!$B$18 -> 0.191 | O61: 334.9 | P61: =IF(ISNUMBER(J61),ROUND(G61*O61*E61,2),"") -> 3014.1
A62: 2.2.15 | B62: SF-01108 | C62: Porcelanato para revestimento de superfícies internas e externas - Linha Residencial | D62: m2 | E62: 100 | G62: 0.3 | J62: =OFFSET(INDEX(Composições!A:H,MATCH('Orçamentária-TR'!B62,Composições!A:A,0),8),2,0) -> 77.204695 | K62: =IF(ISNUMBER(J62),ROUND(G62*E62*J62,2),"") -> 2316.14 | L62: =BDI!$B$18 -> 0.191 | O62: 91.95 | P62: =IF(ISNUMBER(J62),ROUND(G62*O62*E62,2),"") -> 2758.5
A63: 2.2.16 | B63: SF-00115 | C63: Mármore Branco Especial para piso e parede | D63: m2 | E63: 100 | G63: 0.3 | J63: =OFFSET(INDEX(Composições!A:H,MATCH('Orçamentária-TR'!B63,Composições!A:A,0),8),2,0) -> 563.132112 | K63: =IF(ISNUMBER(J63),ROUND(G63*E63*J63,2),"") -> 16893.96 | L63: =BDI!$B$18 -> 0.191 | O63: 670.69 | P63: =IF(ISNUMBER(J63),ROUND(G63*O63*E63,2),"") -> 20120.7
A64: 2.2.17 | B64: SF-01109 | C64: Granitina para revestimento de pisos | D64: m2 | E64: 390 | G64: 0.3 | J64: =OFFSET(INDEX(Composições!A:H,MATCH('Orçamentária-TR'!B64,Composições!A:A,0),8),2,0) -> 95.78986401 | K64: =IF(ISNUMBER(J64),ROUND(G64*E64*J64,2),"") -> 11207.41 | L64: =BDI!$B$18 -> 0.191 | O64: 114.09 | P64: =IF(ISNUMBER(J64),ROUND(G64*O64*E64,2),"") -> 13348.53
A65: 2.2.18 | B65: SF-00151 | C65: Instalação de revestimento de piso têxtil (carpete) reaproveitado | D65: m2 | E65: 1800 | G65: 0.3 | J65: =OFFSET(INDEX(Composições!A:H,MATCH('Orçamentária-TR'!B65,Composições!A:A,0),8),2,0) -> 6.13035 | K65: =IF(ISNUMBER(J65),ROUND(G65*E65*J65,2),"") -> 3310.39 | L65: =BDI!$B$18 -> 0.191 | O65: 7.3 | P65: =IF(ISNUMBER(J65),ROUND(G65*O65*E65,2),"") -> 3942
A66: 2.2.19 | B66: SF-01014 | C66: Piso vinílico semiflexível | D66: m2 | E66: 510 | G66: 0.3 | J66: =OFFSET(INDEX(Composições!A:H,MATCH('Orçamentária-TR'!B66,Composições!A:A,0),8),2,0) -> 92.319043 | K66: =IF(ISNUMBER(J66),ROUND(G66*E66*J66,2),"") -> 14124.81 | L66: =BDI!$B$18 -> 0.191 | O66: 109.95 | P66: =IF(ISNUMBER(J66),ROUND(G66*O66*E66,2),"") -> 16822.35
A67: 2.2.20 | B67: SF-01110 | C67: Piso vinílico flexível em manta | D67: m2 | E67: 140 | G67: 0.3 | J67: =OFFSET(INDEX(Composições!A:H,MATCH('Orçamentária-TR'!B67,Composições!A:A,0),8),2,0) -> 138.003525 | K67: =IF(ISNUMBER(J67),ROUND(G67*E67*J67,2),"") -> 5796.15 | L67: =BDI!$B$18 -> 0.191 | O67: 164.36 | P67: =IF(ISNUMBER(J67),ROUND(G67*O67*E67,2),"") -> 6903.12
A68: 2.2.21 | B68: SF-00095 | C68: Tratamento de trincas superficiais | D68: m | E68: 200 | G68: 0.3 | J68: =OFFSET(INDEX(Composições!A:H,MATCH('Orçamentária-TR'!B68,Composições!A:A,0),8),2,0) -> 21.7305375 | K68: =IF(ISNUMBER(J68),ROUND(G68*E68*J68,2),"") -> 1303.83 | L68: =BDI!$B$18 -> 0.191 | O68: 25.88 | P68: =IF(ISNUMBER(J68),ROUND(G68*O68*E68,2),"") -> 1552.8
A69: 2.2.22 | B69: SF-00977 | C69: Junta de movimentação em fachada | D69: m | E69: 2000 | G69: 0.3 | J69: =OFFSET(INDEX(Composições!A:H,MATCH('Orçamentária-TR'!B69,Composições!A:A,0),8),2,0) -> 24.3407385 | K69: =IF(ISNUMBER(J69),ROUND(G69*E69*J69,2),"") -> 14604.44 | L69: =BDI!$B$18 -> 0.191 | O69: 28.99 | P69: =IF(ISNUMBER(J69),ROUND(G69*O69*E69,2),"") -> 17394
A70: 2.2.23 | B70: SF-01111 | C70: Tratamento de juntas de dilatação ou movimentação | D70: m | E70: 4300 | G70: 0.3 | J70: =OFFSET(INDEX(Composições!A:H,MATCH('Orçamentária-TR'!B70,Composições!A:A,0),8),2,0) -> 35.263905 | K70: =IF(ISNUMBER(J70),ROUND(G70*E70*J70,2),"") -> 45490.44 | L70: =BDI!$B$18 -> 0.191 | O70: 42 | P70: =IF(ISNUMBER(J70),ROUND(G70*O70*E70,2),"") -> 54180
A71: 2.2.24 | B71: SF-01112 | C71: Recuperação superficial de preparação para pintura epóxi de alto desempenho | D71: m2 | E71: 360 | G71: 0.3 | J71: =OFFSET(INDEX(Composições!A:H,MATCH('Orçamentária-TR'!B71,Composições!A:A,0),8),2,0) -> 122.1163 | K71: =IF(ISNUMBER(J71),ROUND(G71*E71*J71,2),"") -> 13188.56 | L71: =BDI!$B$18 -> 0.191 | O71: 145.44 | P71: =IF(ISNUMBER(J71),ROUND(G71*O71*E71,2),"") -> 15707.52
A72: 2.2.25 | B72: SF-01113 | C72: Lixamento, calafetação e aplicação de sinteco em piso de madeira - Linha Residencial | D72: m2 | E72: 600 | G72: 0.3 | J72: =OFFSET(INDEX(Composições!A:H,MATCH('Orçamentária-TR'!B72,Composições!A:A,0),8),2,0) -> 42.75 | K72: =IF(ISNUMBER(J72),ROUND(G72*E72*J72,2),"") -> 7695 | L72: =BDI!$B$18 -> 0.191 | O72: 50.92 | P72: =IF(ISNUMBER(J72),ROUND(G72*O72*E72,2),"") -> 9165.6
A73: 2.2.26 | B73: SF-00116 | C73: Rodapé de madeira | D73: m | E73: 300 | G73: 0.3 | J73: =OFFSET(INDEX(Composições!A:H,MATCH('Orçamentária-TR'!B73,Composições!A:A,0),8),2,0) -> 17.062285 | K73: =IF(ISNUMBER(J73),ROUND(G73*E73*J73,2),"") -> 1535.61 | L73: =BDI!$B$18 -> 0.191 | O73: 20.32 | P73: =IF(ISNUMBER(J73),ROUND(G73*O73*E73,2),"") -> 1828.8
A74: 2.2.27 | B74: SF-01114 | C74: Piso em taco de madeira - Linha Residencial | D74: m2 | E74: 300 | G74: 0.3 | J74: =OFFSET(INDEX(Composições!A:H,MATCH('Orçamentária-TR'!B74,Composições!A:A,0),8),2,0) -> 130.509575 | K74: =IF(ISNUMBER(J74),ROUND(G74*E74*J74,2),"") -> 11745.86 | L74: =BDI!$B$18 -> 0.191 | O74: 155.44 | P74: =IF(ISNUMBER(J74),ROUND(G74*O74*E74,2),"") -> 13989.6
A75: 2.2.28 | B75: SF-01115 | C75: Piso de borracha antiderrapante tipo moeda | D75: m2 | E75: 150 | G75: 0.3 | J75: =OFFSET(INDEX(Composições!A:H,MATCH('Orçamentária-TR'!B75,Composições!A:A,0),8),2,0) -> 174.724095 | K75: =IF(ISNUMBER(J75),ROUND(G75*E75*J75,2),"") -> 7862.58 | L75: =BDI!$B$18 -> 0.191 | O75: 208.1 | P75: =IF(ISNUMBER(J75),ROUND(G75*O75*E75,2),"") -> 9364.5
A76: 2.2.29 | B76: SF-01116 | C76: Piso sintético flutuante - Linha Residencial | D76: m2 | E76: 600 | G76: 0.3 | J76: =OFFSET(INDEX(Composições!A:H,MATCH('Orçamentária-TR'!B76,Composições!A:A,0),8),2,0) -> 94.132125 | K76: =IF(ISNUMBER(J76),ROUND(G76*E76*J76,2),"") -> 16943.78 | L76: =BDI!$B$18 -> 0.191 | O76: 112.11 | P76: =IF(ISNUMBER(J76),ROUND(G76*O76*E76,2),"") -> 20179.8
A77: 2.2.30 | B77: SF-01117 | C77: Revestimento acústico perfilado - Linha Administrativa | D77: m2 | E77: 300 | G77: 0.3 | J77: =OFFSET(INDEX(Composições!A:H,MATCH('Orçamentária-TR'!B77,Composições!A:A,0),8),2,0) -> 179.400375 | K77: =IF(ISNUMBER(J77),ROUND(G77*E77*J77,2),"") -> 16146.03 | L77: =BDI!$B$18 -> 0.191 | O77: 213.67 | P77: =IF(ISNUMBER(J77),ROUND(G77*O77*E77,2),"") -> 19230.3
A78: 2.2.31 | B78: SF-01118 | C78: Revestimento acústico plano - Linha Administrativa | D78: m2 | E78: 300 | G78: 0.3 | J78: =OFFSET(INDEX(Composições!A:H,MATCH('Orçamentária-TR'!B78,Composições!A:A,0),8),2,0) -> 209.325375 | K78: =IF(ISNUMBER(J78),ROUND(G78*E78*J78,2),"") -> 18839.28 | L78: =BDI!$B$18 -> 0.191 | O78: 249.31 | P78: =IF(ISNUMBER(J78),ROUND(G78*O78*E78,2),"") -> 22437.9
A79: 2.3 | C79: Serviços de Manutenção no Sistema de Vedações | K79: =SUBTOTAL(109,K80:K81) -> 29783.68 | P79: =SUBTOTAL(109,P80:P81) -> 35472.48
A80: 2.3.1 | B80: SF-00087 | C80: Parede em gesso acartonado (drywall) | D80: m2 | E80: 1305 | G80: 0.3 | J80: =OFFSET(INDEX(Composições!A:H,MATCH('Orçamentária-TR'!B80,Composições!A:A,0),8),2,0) -> 75.66706205 | K80: =IF(ISNUMBER(J80),ROUND(G80*E80*J80,2),"") -> 29623.65 | L80: =BDI!$B$18 -> 0.191 | O80: =IF(ISNUMBER(J80),ROUND(J80*(1+L80),2),"") -> 90.12 | P80: =IF(ISNUMBER(J80),ROUND(G80*O80*E80,2),"") -> 35281.98
A81: 2.3.2 | B81: SF-00088 | C81: Reparos superficiais em painéis de gesso acartonado | D81: m2 | E81: 100 | G81: 0.3 | J81: =OFFSET(INDEX(Composições!A:H,MATCH('Orçamentária-TR'!B81,Composições!A:A,0),8),2,0) -> 5.3342614 | K81: =IF(ISNUMBER(J81),ROUND(G81*E81*J81,2),"") -> 160.03 | L81: =BDI!$B$18 -> 0.191 | O81: 6.35 | P81: =IF(ISNUMBER(J81),ROUND(G81*O81*E81,2),"") -> 190.5
A82: 2.4 | C82: Serviços de Manutenção no Sistema de Forros | K82: =SUBTOTAL(109,K83:K93) -> 235039.67 | P82: =SUBTOTAL(109,P83:P93) -> 279933.65
A83: 2.4.1 | B83: SF-00144 | C83: Forro em gesso acartonado monolítico | D83: m2 | E83: 4000 | G83: 0.3 | J83: =OFFSET(INDEX(Composições!A:H,MATCH('Orçamentária-TR'!B83,Composições!A:A,0),8),2,0) -> 55.4182899 | K83: =IF(ISNUMBER(J83),ROUND(G83*E83*J83,2),"") -> 66501.95 | L83: =BDI!$B$18 -> 0.191 | O83: =IF(ISNUMBER(J83),ROUND(J83*(1+L83),2),"") -> 66 | P83: =IF(ISNUMBER(J83),ROUND(G83*O83*E83,2),"") -> 79200
A84: 2.4.2 | B84: SF-00145 | C84: Forro em gesso acartonado monolítico, sem estrutura | D84: m2 | E84: 4100 | G84: 0.3 | J84: =OFFSET(INDEX(Composições!A:H,MATCH('Orçamentária-TR'!B84,Composições!A:A,0),8),2,0) -> 41.1405157 | K84: =IF(ISNUMBER(J84),ROUND(G84*E84*J84,2),"") -> 50602.83 | L84: =BDI!$B$18 -> 0.191 | O84: 49 | P84: =IF(ISNUMBER(J84),ROUND(G84*O84*E84,2),"") -> 60270
A85: 2.4.3 | B85: SF-00150 | C85: Tabica metálica em forro de gesso acartonado | D85: m | E85: 90 | G85: 0.3 | J85: =OFFSET(INDEX(Composições!A:H,MATCH('Orçamentária-TR'!B85,Composições!A:A,0),8),2,0) -> 8.58223255 | K85: =IF(ISNUMBER(J85),ROUND(G85*E85*J85,2),"") -> 231.72 | L85: =BDI!$B$18 -> 0.191 | O85: 10.22 | P85: =IF(ISNUMBER(J85),ROUND(G85*O85*E85,2),"") -> 275.94
A86: 2.4.4 | B86: SF-00139 | C86: Alçapão em forro de gesso acartonado | D86: m2 | E86: 195 | G86: 0.3 | J86: =OFFSET(INDEX(Composições!A:H,MATCH('Orçamentária-TR'!B86,Composições!A:A,0),8),2,0) -> 113.65856 | K86: =IF(ISNUMBER(J86),ROUND(G86*E86*J86,2),"") -> 6649.03 | L86: =BDI!$B$18 -> 0.191 | O86: 135.37 | P86: =IF(ISNUMBER(J86),ROUND(G86*O86*E86,2),"") -> 7919.15
A87: 2.4.5 | B87: SF-01119 | C87: Forro monolítico de gesso em placas | D87: m2 | E87: 90 | G87: 0.3 | J87: =OFFSET(INDEX(Composições!A:H,MATCH('Orçamentária-TR'!B87,Composições!A:A,0),8),2,0) -> 38.53348295 | K87: =IF(ISNUMBER(J87),ROUND(G87*E87*J87,2),"") -> 1040.4 | L87: =BDI!$B$18 -> 0.191 | O87: 45.89 | P87: =IF(ISNUMBER(J87),ROUND(G87*O87*E87,2),"") -> 1239.03
A88: 2.4.6 | B88: SF-00140 | C88: Forro de PVC em réguas de 100 x 6000mm | D88: m2 | E88: 180 | G88: 0.3 | J88: =OFFSET(INDEX(Composições!A:H,MATCH('Orçamentária-TR'!B88,Composições!A:A,0),8),2,0) -> 36.4831578 | K88: =IF(ISNUMBER(J88),ROUND(G88*E88*J88,2),"") -> 1970.09 | L88: =BDI!$B$18 -> 0.191 | O88: 43.45 | P88: =IF(ISNUMBER(J88),ROUND(G88*O88*E88,2),"") -> 2346.3
A89: 2.4.7 | B89: SF-00141 | C89: Forro de PVC em réguas de 100 x 6000mm, sem estrutura | D89: m2 | E89: 360 | G89: 0.3 | J89: =OFFSET(INDEX(Composições!A:H,MATCH('Orçamentária-TR'!B89,Composições!A:A,0),8),2,0) -> 15.3288143 | K89: =IF(ISNUMBER(J89),ROUND(G89*E89*J89,2),"") -> 1655.51 | L89: =BDI!$B$18 -> 0.191 | O89: 18.26 | P89: =IF(ISNUMBER(J89),ROUND(G89*O89*E89,2),"") -> 1972.08
A90: 2.4.8 | B90: SF-00142 | C90: Forro de PVC modular em placas | D90: m2 | E90: 150 | G90: 0.3 | J90: =OFFSET(INDEX(Composições!A:H,MATCH('Orçamentária-TR'!B90,Composições!A:A,0),8),2,0) -> 61.2875418 | K90: =IF(ISNUMBER(J90),ROUND(G90*E90*J90,2),"") -> 2757.94 | L90: =BDI!$B$18 -> 0.191 | O90: 72.99 | P90: =IF(ISNUMBER(J90),ROUND(G90*O90*E90,2),"") -> 3284.55
A91: 2.4.9 | B91: SF-00143 | C91: Forro em chapas metálicas | D91: m2 | E91: 1600 | G91: 0.3 | J91: =OFFSET(INDEX(Composições!A:H,MATCH('Orçamentária-TR'!B91,Composições!A:A,0),8),2,0) -> 178.1575 | K91: =IF(ISNUMBER(J91),ROUND(G91*E91*J91,2),"") -> 85515.6 | L91: =BDI!$B$18 -> 0.191 | O91: 212.19 | P91: =IF(ISNUMBER(J91),ROUND(G91*O91*E91,2),"") -> 101851.2
A92: 2.4.10 | B92: SF-00146 | C92: Forro mineral modulado | D92: m2 | E92: 500 | G92: 0.3 | J92: =OFFSET(INDEX(Composições!A:H,MATCH('Orçamentária-TR'!B92,Composições!A:A,0),8),2,0) -> 98.686 | K92: =IF(ISNUMBER(J92),ROUND(G92*E92*J92,2),"") -> 14802.9 | L92: =BDI!$B$18 -> 0.191 | O92: 117.54 | P92: =IF(ISNUMBER(J92),ROUND(G92*O92*E92,2),"") -> 17631
A93: 2.4.11 | B93: SF-00147 | C93: Forro mineral modulado, sem estrutura | D93: m2 | E93: 400 | G93: 0.3 | J93: =OFFSET(INDEX(Composições!A:H,MATCH('Orçamentária-TR'!B93,Composições!A:A,0),8),2,0) -> 27.5975 | K93: =IF(ISNUMBER(J93),ROUND(G93*E93*J93,2),"") -> 3311.7 | L93: =BDI!$B$18 -> 0.191 | O93: 32.87 | P93: =IF(ISNUMBER(J93),ROUND(G93*O93*E93,2),"") -> 3944.4
A94: 2.5 | C94: Serviços de Manutenção no Sistema de Pinturas | K94: =SUBTOTAL(109,K95:K112) -> 2080525.07 | P94: =SUBTOTAL(109,P95:P112) -> 2477890.71
A95: 2.5.1 | B95: SF-00037 | C95: Remoção de pintura ou textura | D95: m2 | E95: 20000 | G95: 0.3 | J95: =OFFSET(INDEX(Composições!A:H,MATCH('Orçamentária-TR'!B95,Composições!A:A,0),8),2,0) -> 6.3004 | K95: =IF(ISNUMBER(J95),ROUND(G95*E95*J95,2),"") -> 37802.4 | L95: =BDI!$B$18 -> 0.191 | O95: =IF(ISNUMBER(J95),ROUND(J95*(1+L95),2),"") -> 7.5 | P95: =IF(ISNUMBER(J95),ROUND(G95*O95*E95,2),"") -> 45000
A96: 2.5.2 | B96: SF-00096 | C96: Aplicação de fundo selador base água | D96: m2 | E96: 42090 | G96: 0.3 | J96: =OFFSET(INDEX(Composições!A:H,MATCH('Orçamentária-TR'!B96,Composições!A:A,0),8),2,0) -> 4.051162 | K96: =IF(ISNUMBER(J96),ROUND(G96*E96*J96,2),"") -> 51154.02 | L96: =BDI!$B$18 -> 0.191 | O96: 4.82 | P96: =IF(ISNUMBER(J96),ROUND(G96*O96*E96,2),"") -> 60862.14
A97: 2.5.3 | B97: SF-01120 | C97: Textura acrílica - Linha Administrativa | D97: m2 | E97: 4500 | G97: 0.3 | J97: =OFFSET(INDEX(Composições!A:H,MATCH('Orçamentária-TR'!B97,Composições!A:A,0),8),2,0) -> 12.126579 | K97: =IF(ISNUMBER(J97),ROUND(G97*E97*J97,2),"") -> 16370.88 | L97: =BDI!$B$18 -> 0.191 | O97: 14.44 | P97: =IF(ISNUMBER(J97),ROUND(G97*O97*E97,2),"") -> 19494
A98: 2.5.4 | B98: SF-00099 | C98: Massa corrida | D98: m2 | E98: 96927 | G98: 0.3 | J98: =OFFSET(INDEX(Composições!A:H,MATCH('Orçamentária-TR'!B98,Composições!A:A,0),8),2,0) -> 12.2603675 | K98: =IF(ISNUMBER(J98),ROUND(G98*E98*J98,2),"") -> 356508.19 | L98: =BDI!$B$18 -> 0.191 | O98: 14.6 | P98: =IF(ISNUMBER(J98),ROUND(G98*O98*E98,2),"") -> 424540.26
A99: 2.5.5 | B99: SF-00098 | C99: Massa acrílica | D99: m2 | E99: 12190 | G99: 0.3 | J99: =OFFSET(INDEX(Composições!A:H,MATCH('Orçamentária-TR'!B99,Composições!A:A,0),8),2,0) -> 15.683284 | K99: =IF(ISNUMBER(J99),ROUND(G99*E99*J99,2),"") -> 57353.77 | L99: =BDI!$B$18 -> 0.191 | O99: 18.68 | P99: =IF(ISNUMBER(J99),ROUND(G99*O99*E99,2),"") -> 68312.76
A100: 2.5.6 | B100: SF-00100 | C100: Pintura com tinta látex acrílica Premium (paredes) | D100: m2 | E100: 154147 | G100: 0.3 | J100: =OFFSET(INDEX(Composições!A:H,MATCH('Orçamentária-TR'!B100,Composições!A:A,0),8),2,0) -> 11.6972265 | K100: =IF(ISNUMBER(J100),ROUND(G100*E100*J100,2),"") -> 540927.71 | L100: =BDI!$B$18 -> 0.191 | O100: 13.93 | P100: =IF(ISNUMBER(J100),ROUND(G100*O100*E100,2),"") -> 644180.31
A101: 2.5.7 | B101: SF-01121 | C101: Pintura com tinta látex acrílica Premium - cores especiais (sistema tintométrico) | D101: m2 | E101: 6460 | G101: 0.3 | J101: =OFFSET(INDEX(Composições!A:H,MATCH('Orçamentária-TR'!B101,Composições!A:A,0),8),2,0) -> 12.661239 | K101: =IF(ISNUMBER(J101),ROUND(G101*E101*J101,2),"") -> 24537.48 | L101: =BDI!$B$18 -> 0.191 | O101: 15.08 | P101: =IF(ISNUMBER(J101),ROUND(G101*O101*E101,2),"") -> 29225.04
A102: 2.5.8 | B102: SF-00103 | C102: Pintura tinta látex acrílica standard (tetos) | D102: m2 | E102: 140000 | G102: 0.3 | J102: =OFFSET(INDEX(Composições!A:H,MATCH('Orçamentária-TR'!B102,Composições!A:A,0),8),2,0) -> 13.287479 | K102: =IF(ISNUMBER(J102),ROUND(G102*E102*J102,2),"") -> 558074.12 | L102: =BDI!$B$18 -> 0.191 | O102: 15.83 | P102: =IF(ISNUMBER(J102),ROUND(G102*O102*E102,2),"") -> 664860
A103: 2.5.9 | B103: SF-00097 | C103: Fundo anticorrosivo e de aderência (base água) | D103: m2 | E103: 5000 | G103: 0.3 | J103: =OFFSET(INDEX(Composições!A:H,MATCH('Orçamentária-TR'!B103,Composições!A:A,0),8),2,0) -> 15.6061005 | K103: =IF(ISNUMBER(J103),ROUND(G103*E103*J103,2),"") -> 23409.15 | L103: =BDI!$B$18 -> 0.191 | O103: 18.59 | P103: =IF(ISNUMBER(J103),ROUND(G103*O103*E103,2),"") -> 27885
A104: 2.5.10 | B104: SF-00102 | C104: Pintura esmalte acetinado (metais e madeiras) | D104: m2 | E104: 42000 | G104: 0.3 | J104: =OFFSET(INDEX(Composições!A:H,MATCH('Orçamentária-TR'!B104,Composições!A:A,0),8),2,0) -> 16.44064 | K104: =IF(ISNUMBER(J104),ROUND(G104*E104*J104,2),"") -> 207152.06 | L104: =BDI!$B$18 -> 0.191 | O104: 19.58 | P104: =IF(ISNUMBER(J104),ROUND(G104*O104*E104,2),"") -> 246708
A105: 2.5.11 | B105: SF-00101 | C105: Pintura em verniz sintético | D105: m2 | E105: 1500 | G105: 0.3 | J105: =OFFSET(INDEX(Composições!A:H,MATCH('Orçamentária-TR'!B105,Composições!A:A,0),8),2,0) -> 17.03954 | K105: =IF(ISNUMBER(J105),ROUND(G105*E105*J105,2),"") -> 7667.79 | L105: =BDI!$B$18 -> 0.191 | O105: 20.29 | P105: =IF(ISNUMBER(J105),ROUND(G105*O105*E105,2),"") -> 9130.5
A106: 2.5.12 | B106: SF-01122 | C106: Pintura Eletrostática | D106: m2 | E106: 3000 | G106: 0.3 | J106: 40 | K106: =IF(ISNUMBER(J106),ROUND(G106*E106*J106,2),"") -> 36000 | L106: =BDI!$B$18 -> 0.191 | O106: 47.64 | P106: =IF(ISNUMBER(J106),ROUND(G106*O106*E106,2),"") -> 42876
A107: 2.5.13 | B107: SF-01123 | C107: Pintura com tinta acrílica (pisos) | D107: m2 | E107: 12000 | G107: 0.3 | J107: =OFFSET(INDEX(Composições!A:H,MATCH('Orçamentária-TR'!B107,Composições!A:A,0),8),2,0) -> 13.977445 | K107: =IF(ISNUMBER(J107),ROUND(G107*E107*J107,2),"") -> 50318.8 | L107: =BDI!$B$18 -> 0.191 | O107: 16.65 | P107: =IF(ISNUMBER(J107),ROUND(G107*O107*E107,2),"") -> 59940
A108: 2.5.14 | B108: SF-01124 | C108: Pintura com tinta epóxi de alto desempenho (pisos) | D108: m2 | E108: 3600 | G108: 0.3 | J108: =OFFSET(INDEX(Composições!A:H,MATCH('Orçamentária-TR'!B108,Composições!A:A,0),8),2,0) -> 57.215954 | K108: =IF(ISNUMBER(J108),ROUND(G108*E108*J108,2),"") -> 61793.23 | L108: =BDI!$B$18 -> 0.191 | O108: 68.14 | P108: =IF(ISNUMBER(J108),ROUND(G108*O108*E108,2),"") -> 73591.2
A109: 2.5.15 | B109: SF-01125 | C109: Verniz de poliuretano sobre pintura epóxi de alto desempenho | D109: m2 | E109: 3600 | G109: 0.3 | J109: =OFFSET(INDEX(Composições!A:H,MATCH('Orçamentária-TR'!B109,Composições!A:A,0),8),2,0) -> 18.4515555 | K109: =IF(ISNUMBER(J109),ROUND(G109*E109*J109,2),"") -> 19927.68 | L109: =BDI!$B$18 -> 0.191 | O109: 21.98 | P109: =IF(ISNUMBER(J109),ROUND(G109*O109*E109,2),"") -> 23738.4
A110: 2.5.16 | B110: SF-01126 | C110: Tratamento antiderrapante em verniz de poliuretano sobre pintura epóxi | D110: m2 | E110: 2100 | G110: 0.3 | J110: =OFFSET(INDEX(Composições!A:H,MATCH('Orçamentária-TR'!B110,Composições!A:A,0),8),2,0) -> 7.746819 | K110: =IF(ISNUMBER(J110),ROUND(G110*E110*J110,2),"") -> 4880.5 | L110: =BDI!$B$18 -> 0.191 | O110: 9.23 | P110: =IF(ISNUMBER(J110),ROUND(G110*O110*E110,2),"") -> 5814.9
A111: 2.5.17 | B111: SF-00092 | C111: Gesso cola | D111: m2 | E111: 6900 | G111: 0.3 | J111: =OFFSET(INDEX(Composições!A:H,MATCH('Orçamentária-TR'!B111,Composições!A:A,0),8),2,0) -> 12.76428 | K111: =IF(ISNUMBER(J111),ROUND(G111*E111*J111,2),"") -> 26422.06 | L111: =BDI!$B$18 -> 0.191 | O111: 15.2 | P111: =IF(ISNUMBER(J111),ROUND(G111*O111*E111,2),"") -> 31464
A112: 2.5.18 | B112: SF-01127 | C112: Pintura para superfícies galvanizadas | D112: m2 | E112: 30 | G112: 0.3 | J112: =OFFSET(INDEX(Composições!A:H,MATCH('Orçamentária-TR'!B112,Composições!A:A,0),8),2,0) -> 25.0251736 | K112: =IF(ISNUMBER(J112),ROUND(G112*E112*J112,2),"") -> 225.23 | L112: =BDI!$B$18 -> 0.191 | O112: 29.8 | P112: =IF(ISNUMBER(J112),ROUND(G112*O112*E112,2),"") -> 268.2
A113: 2.6 | C113: Serviços de Manutenção no Sistema de Pavimentação Viária | K113: =SUBTOTAL(109,K114:K122) -> 123152.31 | P113: =SUBTOTAL(109,P114:P122) -> 146660.15
A114: 2.6.1 | B114: SF-00981 | C114: Base para pavimentação com concreto magro | D114: m3 | E114: 30 | G114: 0.3 | J114: =OFFSET(INDEX(Composições!A:H,MATCH('Orçamentária-TR'!B114,Composições!A:A,0),8),2,0) -> 423.7303046 | K114: =IF(ISNUMBER(J114),ROUND(G114*E114*J114,2),"") -> 3813.57 | L114: =BDI!$B$18 -> 0.191 | O114: =IF(ISNUMBER(J114),ROUND(J114*(1+L114),2),"") -> 504.66 | P114: =IF(ISNUMBER(J114),ROUND(G114*O114*E114,2),"") -> 4541.94
A115: 2.6.2 | B115: SF-00982 | C115: Pavimentação em concreto armado simples | D115: m2 | E115: 735 | G115: 0.3 | J115: =OFFSET(INDEX(Composições!A:H,MATCH('Orçamentária-TR'!B115,Composições!A:A,0),8),2,0) -> 81.53519181 | K115: =IF(ISNUMBER(J115),ROUND(G115*E115*J115,2),"") -> 17978.51 | L115: =BDI!$B$18 -> 0.191 | O115: 97.11 | P115: =IF(ISNUMBER(J115),ROUND(G115*O115*E115,2),"") -> 21412.76
A116: 2.6.3 | B116: SF-01128 | C116: Selagem ou resselagem de juntas em pavimentação de concreto armado | D116: m | E116: 300 | G116: 0.3 | J116: =OFFSET(INDEX(Composições!A:H,MATCH('Orçamentária-TR'!B116,Composições!A:A,0),8),2,0) -> 8.037722091 | K116: =IF(ISNUMBER(J116),ROUND(G116*E116*J116,2),"") -> 723.39 | L116: =BDI!$B$18 -> 0.191 | O116: 9.57 | P116: =IF(ISNUMBER(J116),ROUND(G116*O116*E116,2),"") -> 861.3
A117: 2.6.4 | B117: SF-01129 | C117: Pavimentação em elementos intertravados de concreto | D117: m2 | E117: 330 | G117: 0.3 | J117: =OFFSET(INDEX(Composições!A:H,MATCH('Orçamentária-TR'!B117,Composições!A:A,0),8),2,0) -> 45.42354658 | K117: =IF(ISNUMBER(J117),ROUND(G117*E117*J117,2),"") -> 4496.93 | L117: =BDI!$B$18 -> 0.191 | O117: 54.1 | P117: =IF(ISNUMBER(J117),ROUND(G117*O117*E117,2),"") -> 5355.9
A118: 2.6.5 | B118: SF-01130 | C118: Pavimentação com Asfalto Pré-Misturado a Frio (PMF) | D118: m3 | E118: 50 | G118: 0.3 | J118: =OFFSET(INDEX(Composições!A:H,MATCH('Orçamentária-TR'!B118,Composições!A:A,0),8),2,0) -> 519.3446729 | K118: =IF(ISNUMBER(J118),ROUND(G118*E118*J118,2),"") -> 7790.17 | L118: =BDI!$B$18 -> 0.191 | O118: 618.54 | P118: =IF(ISNUMBER(J118),ROUND(G118*O118*E118,2),"") -> 9278.1
A119: 2.6.6 | B119: SF-01131 | C119: Pavimentação asfáltica com CBUQ para aplicação a frio (remendo) | D119: m3 | E119: 50 | G119: 0.3 | J119: =OFFSET(INDEX(Composições!A:H,MATCH('Orçamentária-TR'!B119,Composições!A:A,0),8),2,0) -> 2666.913682 | K119: =IF(ISNUMBER(J119),ROUND(G119*E119*J119,2),"") -> 40003.71 | L119: =BDI!$B$18 -> 0.191 | O119: 3176.29 | P119: =IF(ISNUMBER(J119),ROUND(G119*O119*E119,2),"") -> 47644.35
A120: 2.6.7 | B120: SF-01132 | C120: Pintura para sinalização e demarcação viária horizontal | D120: m2 | E120: 6210 | G120: 0.3 | J120: =OFFSET(INDEX(Composições!A:H,MATCH('Orçamentária-TR'!B120,Composições!A:A,0),8),2,0) -> 14.58221405 | K120: =IF(ISNUMBER(J120),ROUND(G120*E120*J120,2),"") -> 27166.66 | L120: =BDI!$B$18 -> 0.191 | O120: 17.37 | P120: =IF(ISNUMBER(J120),ROUND(G120*O120*E120,2),"") -> 32360.31
A121: 2.6.8 | B121: SF-00991 | C121: Meios-fios em concreto pré-moldado | D121: m | E121: 270 | G121: 0.3 | J121: =OFFSET(INDEX(Composições!A:H,MATCH('Orçamentária-TR'!B121,Composições!A:A,0),8),2,0) -> 34.93582383 | K121: =IF(ISNUMBER(J121),ROUND(G121*E121*J121,2),"") -> 2829.8 | L121: =BDI!$B$18 -> 0.191 | O121: 41.61 | P121: =IF(ISNUMBER(J121),ROUND(G121*O121*E121,2),"") -> 3370.41
A122: 2.6.9 | B122: SF-00990 | C122: Pintura de meios-fios com tinta acrílica | D122: m | E122: 13890 | G122: 0.3 | J122: =OFFSET(INDEX(Composições!A:H,MATCH('Orçamentária-TR'!B122,Composições!A:A,0),8),2,0) -> 4.403544975 | K122: =IF(ISNUMBER(J122),ROUND(G122*E122*J122,2),"") -> 18349.57 | L122: =BDI!$B$18 -> 0.191 | O122: 5.24 | P122: =IF(ISNUMBER(J122),ROUND(G122*O122*E122,2),"") -> 21835.08
A123: 2.7 | C123: Serviços de Manutenção no Sistema de Cobertura | K123: =SUBTOTAL(109,K124:K134) -> 77387.79 | P123: =SUBTOTAL(109,P124:P134) -> 92170.8
A124: 2.7.1 | B124: SF-01133 | C124: Telha metálica trapezoidal galvanizada - GR-40 | D124: m2 | E124: 1200 | G124: 0.3 | J124: =OFFSET(INDEX(Composições!A:H,MATCH('Orçamentária-TR'!B124,Composições!A:A,0),8),2,0) -> 44.55590535 | K124: =IF(ISNUMBER(J124),ROUND(G124*E124*J124,2),"") -> 16040.13 | L124: =BDI!$B$18 -> 0.191 | O124: =IF(ISNUMBER(J124),ROUND(J124*(1+L124),2),"") -> 53.07 | P124: =IF(ISNUMBER(J124),ROUND(G124*O124*E124,2),"") -> 19105.2
A125: 2.7.2 | B125: SF-01134 | C125: Cumeeira para telha metálica trapezoidal galvanizada - GR-40 | D125: m | E125: 600 | G125: 0.3 | J125: =OFFSET(INDEX(Composições!A:H,MATCH('Orçamentária-TR'!B125,Composições!A:A,0),8),2,0) -> 58.9821337 | K125: =IF(ISNUMBER(J125),ROUND(G125*E125*J125,2),"") -> 10616.78 | L125: =BDI!$B$18 -> 0.191 | O125: 70.25 | P125: =IF(ISNUMBER(J125),ROUND(G125*O125*E125,2),"") -> 12645
A126: 2.7.3 | B126: SF-01135 | C126: Telha metálica trapezoidal galvanizada - GR-25 | D126: m2 | E126: 900 | G126: 0.3 | J126: =OFFSET(INDEX(Composições!A:H,MATCH('Orçamentária-TR'!B126,Composições!A:A,0),8),2,0) -> 47.14034435 | K126: =IF(ISNUMBER(J126),ROUND(G126*E126*J126,2),"") -> 12727.89 | L126: =BDI!$B$18 -> 0.191 | O126: 56.14 | P126: =IF(ISNUMBER(J126),ROUND(G126*O126*E126,2),"") -> 15157.8
A127: 2.7.4 | B127: SF-01136 | C127: Cumeeira para telha metálica trapezoidal galvanizada - GR-25 | D127: m | E127: 600 | G127: 0.3 | J127: =OFFSET(INDEX(Composições!A:H,MATCH('Orçamentária-TR'!B127,Composições!A:A,0),8),2,0) -> 43.8249637 | K127: =IF(ISNUMBER(J127),ROUND(G127*E127*J127,2),"") -> 7888.49 | L127: =BDI!$B$18 -> 0.191 | O127: 52.2 | P127: =IF(ISNUMBER(J127),ROUND(G127*O127*E127,2),"") -> 9396
A128: 2.7.5 | B128: SF-01137 | C128: Telha de fibrocimento modulada - espessura 8mm | D128: m2 | E128: 150 | G128: 0.3 | J128: =OFFSET(INDEX(Composições!A:H,MATCH('Orçamentária-TR'!B128,Composições!A:A,0),8),2,0) -> 76.145825 | K128: =IF(ISNUMBER(J128),ROUND(G128*E128*J128,2),"") -> 3426.56 | L128: =BDI!$B$18 -> 0.191 | O128: 90.69 | P128: =IF(ISNUMBER(J128),ROUND(G128*O128*E128,2),"") -> 4081.05
A129: 2.7.6 | B129: SF-01138 | C129: Cumeeira articulada ABA SUPERIOR de fibrocimento para telha modulada - espessura 6 mm | D129: m | E129: 75 | G129: 0.3 | J129: =OFFSET(INDEX(Composições!A:H,MATCH('Orçamentária-TR'!B129,Composições!A:A,0),8),2,0) -> 56.82425 | K129: =IF(ISNUMBER(J129),ROUND(G129*E129*J129,2),"") -> 1278.55 | L129: =BDI!$B$18 -> 0.191 | O129: 67.68 | P129: =IF(ISNUMBER(J129),ROUND(G129*O129*E129,2),"") -> 1522.8
A130: 2.7.7 | B130: SF-01139 | C130: Cumeeira articulada ABA INFERIOR de fibrocimento para telha modulada - espessura 6 mm | D130: m | E130: 75 | G130: 0.3 | J130: =OFFSET(INDEX(Composições!A:H,MATCH('Orçamentária-TR'!B130,Composições!A:A,0),8),2,0) -> 56.84382 | K130: =IF(ISNUMBER(J130),ROUND(G130*E130*J130,2),"") -> 1278.99 | L130: =BDI!$B$18 -> 0.191 | O130: 67.7 | P130: =IF(ISNUMBER(J130),ROUND(G130*O130*E130,2),"") -> 1523.25
A131: 2.7.8 | B131: SF-01140 | C131: Telha de fibrocimento ondulada - espessura 6mm | D131: m2 | E131: 1500 | G131: 0.3 | J131: =OFFSET(INDEX(Composições!A:H,MATCH('Orçamentária-TR'!B131,Composições!A:A,0),8),2,0) -> 27.85734115 | K131: =IF(ISNUMBER(J131),ROUND(G131*E131*J131,2),"") -> 12535.8 | L131: =BDI!$B$18 -> 0.191 | O131: 33.18 | P131: =IF(ISNUMBER(J131),ROUND(G131*O131*E131,2),"") -> 14931
A132: 2.7.9 | B132: SF-01141 | C132: Cumeeira UNIVERSAL para telha de fibrocimento ondulada - espessura 6 mm | D132: m | E132: 300 | G132: 0.3 | J132: =OFFSET(INDEX(Composições!A:H,MATCH('Orçamentária-TR'!B132,Composições!A:A,0),8),2,0) -> 34.9287222 | K132: =IF(ISNUMBER(J132),ROUND(G132*E132*J132,2),"") -> 3143.58 | L132: =BDI!$B$18 -> 0.191 | O132: 41.6 | P132: =IF(ISNUMBER(J132),ROUND(G132*O132*E132,2),"") -> 3744
A133: 2.7.10 | B133: SF-01142 | C133: Cumeeira TIPO SHED para telha de fibrocimento ondulada - espessura 6 mm | D133: m | E133: 300 | G133: 0.3 | J133: =OFFSET(INDEX(Composições!A:H,MATCH('Orçamentária-TR'!B133,Composições!A:A,0),8),2,0) -> 33.4529447 | K133: =IF(ISNUMBER(J133),ROUND(G133*E133*J133,2),"") -> 3010.77 | L133: =BDI!$B$18 -> 0.191 | O133: 39.84 | P133: =IF(ISNUMBER(J133),ROUND(G133*O133*E133,2),"") -> 3585.6
A134: 2.7.11 | B134: SF-01143 | C134: Telha de fibrocimento - Canalete 49 Eternit | D134: m2 | E134: 300 | G134: 0.3 | J134: =OFFSET(INDEX(Composições!A:H,MATCH('Orçamentária-TR'!B134,Composições!A:A,0),8),2,0) -> 60.447265 | K134: =IF(ISNUMBER(J134),ROUND(G134*E134*J134,2),"") -> 5440.25 | L134: =BDI!$B$18 -> 0.191 | O134: 71.99 | P134: =IF(ISNUMBER(J134),ROUND(G134*O134*E134,2),"") -> 6479.1
A135: 2.8 | C135: Serviços de Segurança do Trabalho | K135: =SUBTOTAL(109,K136:K159) -> 366478.66 | P135: =SUBTOTAL(109,P136:P159) -> 436472
A136: 2.8.1 | B136: SF-01144 | C136: Passarela móvel para telhado (sem degraus) | D136: un | E136: 30 | G136: 0.3 | J136: 1540 | K136: =IF(ISNUMBER(J136),ROUND(G136*E136*J136,2),"") -> 13860 | L136: =BDI!$B$18 -> 0.191 | O136: =IF(ISNUMBER(J136),ROUND(J136*(1+L136),2),"") -> 1834.14 | P136: =IF(ISNUMBER(J136),ROUND(G136*O136*E136,2),"") -> 16507.26
A137: 2.8.2 | B137: SF-01145 | C137: Passarela móvel para telhado (com degraus) | D137: un | E137: 30 | G137: 0.3 | J137: 2033.37 | K137: =IF(ISNUMBER(J137),ROUND(G137*E137*J137,2),"") -> 18300.33 | L137: =BDI!$B$18 -> 0.191 | O137: 2421.74 | P137: =IF(ISNUMBER(J137),ROUND(G137*O137*E137,2),"") -> 21795.66
A138: 2.8.3 | B138: SF-00066 | C138: Ponto de ancoragem | D138: un | E138: 700 | G138: 0.3 | J138: 437.2 | K138: =IF(ISNUMBER(J138),ROUND(G138*E138*J138,2),"") -> 91812 | L138: =BDI!$B$18 -> 0.191 | O138: 520.71 | P138: =IF(ISNUMBER(J138),ROUND(G138*O138*E138,2),"") -> 109349.1
A139: 2.8.4 | B139: SF-00054 | C139: Esticador de cabo de aço | D139: un | E139: 165 | G139: 0.3 | J139: 435.38 | K139: =IF(ISNUMBER(J139),ROUND(G139*E139*J139,2),"") -> 21551.31 | L139: =BDI!$B$18 -> 0.191 | O139: 518.54 | P139: =IF(ISNUMBER(J139),ROUND(G139*O139*E139,2),"") -> 25667.73
A140: 2.8.5 | B140: SF-00056 | C140: Indicador de tensão | D140: un | E140: 45 | G140: 0.3 | J140: 970 | K140: =IF(ISNUMBER(J140),ROUND(G140*E140*J140,2),"") -> 13095 | L140: =BDI!$B$18 -> 0.191 | O140: 1155.27 | P140: =IF(ISNUMBER(J140),ROUND(G140*O140*E140,2),"") -> 15596.15
A141: 2.8.6 | B141: SF-00047 | C141: Absorvedor de energia para linha de vida | D141: un | E141: 45 | G141: 0.3 | J141: 777.26 | K141: =IF(ISNUMBER(J141),ROUND(G141*E141*J141,2),"") -> 10493.01 | L141: =BDI!$B$18 -> 0.191 | O141: 925.72 | P141: =IF(ISNUMBER(J141),ROUND(G141*O141*E141,2),"") -> 12497.22
A142: 2.8.7 | B142: SF-00069 | C142: Suporte intermediário para linha de vida | D142: un | E142: 120 | G142: 0.3 | J142: 270.42 | K142: =IF(ISNUMBER(J142),ROUND(G142*E142*J142,2),"") -> 9735.12 | L142: =BDI!$B$18 -> 0.191 | O142: 322.07 | P142: =IF(ISNUMBER(J142),ROUND(G142*O142*E142,2),"") -> 11594.52
A143: 2.8.8 | B143: SF-00058 | C143: Suporte intermediário curvo para linha de vida | D143: un | E143: 36 | G143: 0.3 | J143: 600 | K143: =IF(ISNUMBER(J143),ROUND(G143*E143*J143,2),"") -> 6480 | L143: =BDI!$B$18 -> 0.191 | O143: 714.6 | P143: =IF(ISNUMBER(J143),ROUND(G143*O143*E143,2),"") -> 7717.68
A144: 2.8.9 | B144: SF-00062 | C144: Pilar de ancoragem para linha de vida | D144: un | E144: 90 | G144: 0.3 | J144: 635.87 | K144: =IF(ISNUMBER(J144),ROUND(G144*E144*J144,2),"") -> 17168.49 | L144: =BDI!$B$18 -> 0.191 | O144: 757.32 | P144: =IF(ISNUMBER(J144),ROUND(G144*O144*E144,2),"") -> 20447.64
A145: 2.8.10 | B145: SF-00065 | C145: Placa de ancoragem para montagem no pilar | D145: un | E145: 90 | G145: 0.3 | J145: 224.72 | K145: =IF(ISNUMBER(J145),ROUND(G145*E145*J145,2),"") -> 6067.44 | L145: =BDI!$B$18 -> 0.191 | O145: 267.64 | P145: =IF(ISNUMBER(J145),ROUND(G145*O145*E145,2),"") -> 7226.28
A146: 2.8.11 | B146: SF-00064 | C146: Placa de ancoragem para extremidade | D146: un | E146: 45 | G146: 0.3 | J146: 524.72 | K146: =IF(ISNUMBER(J146),ROUND(G146*E146*J146,2),"") -> 7083.72 | L146: =BDI!$B$18 -> 0.191 | O146: 624.94 | P146: =IF(ISNUMBER(J146),ROUND(G146*O146*E146,2),"") -> 8436.69
A147: 2.8.12 | B147: SF-00071 | C147: Trole para linha de vida horizontal | D147: un | E147: 36 | G147: 0.3 | J147: 1125 | K147: =IF(ISNUMBER(J147),ROUND(G147*E147*J147,2),"") -> 12150 | L147: =BDI!$B$18 -> 0.191 | O147: 1339.88 | P147: =IF(ISNUMBER(J147),ROUND(G147*O147*E147,2),"") -> 14470.7
A148: 2.8.13 | B148: SF-00072 | C148: Trole para travaqueda retrátil | D148: un | E148: 12 | G148: 0.3 | J148: 2022.47 | K148: =IF(ISNUMBER(J148),ROUND(G148*E148*J148,2),"") -> 7280.89 | L148: =BDI!$B$18 -> 0.191 | O148: 2408.76 | P148: =IF(ISNUMBER(J148),ROUND(G148*O148*E148,2),"") -> 8671.54
A149: 2.8.14 | B149: SF-00050 | C149: Cabo de aço com 8 mm de diâmetro galvanizado para linha de vida | D149: m | E149: 4100 | G149: 0.3 | J149: 19.08 | K149: =IF(ISNUMBER(J149),ROUND(G149*E149*J149,2),"") -> 23468.4 | L149: =BDI!$B$18 -> 0.191 | O149: 22.72 | P149: =IF(ISNUMBER(J149),ROUND(G149*O149*E149,2),"") -> 27945.6
A150: 2.8.15 | B150: SF-00060 | C150: Kit para montagem de dois olhais | D150: un | E150: 336 | G150: 0.3 | J150: 237.36 | K150: =IF(ISNUMBER(J150),ROUND(G150*E150*J150,2),"") -> 23925.89 | L150: =BDI!$B$18 -> 0.191 | O150: 282.7 | P150: =IF(ISNUMBER(J150),ROUND(G150*O150*E150,2),"") -> 28496.16
A151: 2.8.16 | B151: SF-00061 | C151: Manilha com travamento por porca e cupilha | D151: un | E151: 108 | G151: 0.3 | J151: 67.42 | K151: =IF(ISNUMBER(J151),ROUND(G151*E151*J151,2),"") -> 2184.41 | L151: =BDI!$B$18 -> 0.191 | O151: 80.3 | P151: =IF(ISNUMBER(J151),ROUND(G151*O151*E151,2),"") -> 2601.72
A152: 2.8.17 | B152: SF-00059 | C152: Kit de linha de vida para escada de marinheiro | D152: un | E152: 15 | G152: 0.3 | J152: 937.88 | K152: =IF(ISNUMBER(J152),ROUND(G152*E152*J152,2),"") -> 4220.46 | L152: =BDI!$B$18 -> 0.191 | O152: 1117.02 | P152: =IF(ISNUMBER(J152),ROUND(G152*O152*E152,2),"") -> 5026.59
A153: 2.8.18 | B153: SF-00051 | C153: Corda de poliamida 12 mm tipo bombeiro, para trabalho em altura | D153: m | E153: 2000 | G153: 0.3 | J153: =OFFSET(INDEX(Composições!A:H,MATCH('Orçamentária-TR'!B153,Composições!A:A,0),8),2,0) -> 4.41978 | K153: =IF(ISNUMBER(J153),ROUND(G153*E153*J153,2),"") -> 2651.87 | L153: =BDI!$B$18 -> 0.191 | O153: 5.26 | P153: =IF(ISNUMBER(J153),ROUND(G153*O153*E153,2),"") -> 3156
A154: 2.8.19 | B154: SF-01146 | C154: Locação de guincho elétrico de coluna | D154: conj x mês | E154: 9 | G154: 0.3 | J154: 545 | K154: =IF(ISNUMBER(J154),ROUND(G154*E154*J154,2),"") -> 1471.5 | L154: =BDI!$B$18 -> 0.191 | O154: 649.1 | P154: =IF(ISNUMBER(J154),ROUND(G154*O154*E154,2),"") -> 1752.57
A155: 2.8.20 | B155: SF-00052 | C155: Ensaio de ponto de ancoragem existente | D155: un | E155: 150 | G155: 0.3 | J155: 403.57 | K155: =IF(ISNUMBER(J155),ROUND(G155*E155*J155,2),"") -> 18160.65 | L155: =BDI!$B$18 -> 0.191 | O155: 480.65 | P155: =IF(ISNUMBER(J155),ROUND(G155*O155*E155,2),"") -> 21629.25
A156: 2.8.21 | B156: SF-00057 | C156: Isolamento de obra com tela plástica com malha de 5mm e estrutura de madeira pontaleteada | D156: m2 | E156: 1080 | G156: 0.3 | J156: =OFFSET(INDEX(Composições!A:H,MATCH('Orçamentária-TR'!B156,Composições!A:A,0),8),2,0) -> 16.830675 | K156: =IF(ISNUMBER(J156),ROUND(G156*E156*J156,2),"") -> 5453.14 | L156: =BDI!$B$18 -> 0.191 | O156: 20.05 | P156: =IF(ISNUMBER(J156),ROUND(G156*O156*E156,2),"") -> 6496.2
A157: 2.8.22 | B157: SF-00070 | C157: Tapume | D157: m2 | E157: 1980 | G157: 0.3 | J157: =OFFSET(INDEX(Composições!A:H,MATCH('Orçamentária-TR'!B157,Composições!A:A,0),8),2,0) -> 65.20495525 | K157: =IF(ISNUMBER(J157),ROUND(G157*E157*J157,2),"") -> 38731.74 | L157: =BDI!$B$18 -> 0.191 | O157: 77.66 | P157: =IF(ISNUMBER(J157),ROUND(G157*O157*E157,2),"") -> 46130.04
A158: 2.8.23 | B158: SF-01147 | C158: Escada tipo marinheiro COM proteção | D158: m | E158: 150 | G158: 0.3 | J158: =OFFSET(INDEX(Composições!A:H,MATCH('Orçamentária-TR'!B158,Composições!A:A,0),8),2,0) -> 215.1823818 | K158: =IF(ISNUMBER(J158),ROUND(G158*E158*J158,2),"") -> 9683.21 | L158: =BDI!$B$18 -> 0.191 | O158: 256.28 | P158: =IF(ISNUMBER(J158),ROUND(G158*O158*E158,2),"") -> 11532.6
A159: 2.8.24 | B159: SF-01148 | C159: Escada tipo marinheiro SEM proteção | D159: m | E159: 75 | G159: 0.3 | J159: =OFFSET(INDEX(Composições!A:H,MATCH('Orçamentária-TR'!B159,Composições!A:A,0),8),2,0) -> 64.44778178 | K159: =IF(ISNUMBER(J159),ROUND(G159*E159*J159,2),"") -> 1450.08 | L159: =BDI!$B$18 -> 0.191 | O159: 76.76 | P159: =IF(ISNUMBER(J159),ROUND(G159*O159*E159,2),"") -> 1727.1
A160: 2.9 | C160: Serviços de Manutenção no Sistema de Impermeabilização | K160: =SUBTOTAL(109,K161:K165) -> 413577.7 | P160: =SUBTOTAL(109,P161:P165) -> 492584.55
A161: 2.9.1 | B161: SF-01149 | C161: Limpeza e Preparação do Substrato para Impermeabilização | D161: m2 | E161: 26598 | G161: 0.3 | J161: =OFFSET(INDEX(Composições!A:H,MATCH('Orçamentária-TR'!B161,Composições!A:A,0),8),2,0) -> 7.90989 | K161: =IF(ISNUMBER(J161),ROUND(G161*E161*J161,2),"") -> 63116.18 | L161: =BDI!$B$18 -> 0.191 | O161: =IF(ISNUMBER(J161),ROUND(J161*(1+L161),2),"") -> 9.42 | P161: =IF(ISNUMBER(J161),ROUND(G161*O161*E161,2),"") -> 75165.95
A162: 2.9.2 | B162: SF-01150 | C162: Substituição de Coletores de Águas Pluviais | D162: un | E162: 1566 | G162: 0.3 | J162: =OFFSET(INDEX(Composições!A:H,MATCH('Orçamentária-TR'!B162,Composições!A:A,0),8),2,0) -> 152.8253828 | K162: =IF(ISNUMBER(J162),ROUND(G162*E162*J162,2),"") -> 71797.36 | L162: =BDI!$B$18 -> 0.191 | O162: 182.02 | P162: =IF(ISNUMBER(J162),ROUND(G162*O162*E162,2),"") -> 85513
A163: 2.9.3 | B163: SF-01151 | C163: Tratamento de Tubulação Passante para Impermeabilização | D163: un | E163: 732 | G163: 0.3 | J163: =OFFSET(INDEX(Composições!A:H,MATCH('Orçamentária-TR'!B163,Composições!A:A,0),8),2,0) -> 32.891774 | K163: =IF(ISNUMBER(J163),ROUND(G163*E163*J163,2),"") -> 7223.03 | L163: =BDI!$B$18 -> 0.191 | O163: 39.17 | P163: =IF(ISNUMBER(J163),ROUND(G163*O163*E163,2),"") -> 8601.73
A164: 2.9.4 | B164: SF-01152 | C164: Regularização de substrato para Impermeabilização - 3cm | D164: m2 | E164: 26552 | G164: 0.3 | J164: =OFFSET(INDEX(Composições!A:H,MATCH('Orçamentária-TR'!B164,Composições!A:A,0),8),2,0) -> 32.76904094 | K164: =IF(ISNUMBER(J164),ROUND(G164*E164*J164,2),"") -> 261025.07 | L164: =BDI!$B$18 -> 0.191 | O164: 39.03 | P164: =IF(ISNUMBER(J164),ROUND(G164*O164*E164,2),"") -> 310897.37
A165: 2.9.5 | B165: SF-01153 | C165: Regularização de substrato para Impermeabilização - 6cm | D165: m2 | E165: 900 | G165: 0.3 | J165: =OFFSET(INDEX(Composições!A:H,MATCH('Orçamentária-TR'!B165,Composições!A:A,0),8),2,0) -> 38.57799928 | K165: =IF(ISNUMBER(J165),ROUND(G165*E165*J165,2),"") -> 10416.06 | L165: =BDI!$B$18 -> 0.191 | O165: 45.95 | P165: =IF(ISNUMBER(J165),ROUND(G165*O165*E165,2),"") -> 12406.5
A166: 2.10 | C166: Serviços de Manutenção no Sistema de Impermeabilização - Complementares | K166: =SUBTOTAL(109,K167:K183) -> 991151.86 | P166: =SUBTOTAL(109,P167:P183) -> 1180494.41
A167: 2.10.1 | B167: SF-01154 | C167: Camada Separadora para Impermeabilização | D167: m2 | E167: 23544 | G167: 0.3 | J167: =OFFSET(INDEX(Composições!A:H,MATCH('Orçamentária-TR'!B167,Composições!A:A,0),8),2,0) -> 6.21851 | K167: =IF(ISNUMBER(J167),ROUND(G167*E167*J167,2),"") -> 43922.58 | L167: =BDI!$B$18 -> 0.191 | O167: =IF(ISNUMBER(J167),ROUND(J167*(1+L167),2),"") -> 7.41 | P167: =IF(ISNUMBER(J167),ROUND(G167*O167*E167,2),"") -> 52338.31
A168: 2.10.2 | B168: SF-01155 | C168: Camada de Proteção Térmica para Impermeabilização | D168: m2 | E168: 23436 | G168: 0.3 | J168: =OFFSET(INDEX(Composições!A:H,MATCH('Orçamentária-TR'!B168,Composições!A:A,0),8),2,0) -> 7.4708 | K168: =IF(ISNUMBER(J168),ROUND(G168*E168*J168,2),"") -> 52525.7 | L168: =BDI!$B$18 -> 0.191 | O168: 8.9 | P168: =IF(ISNUMBER(J168),ROUND(G168*O168*E168,2),"") -> 62574.12
A169: 2.10.3 | B169: SF-01156 | C169: Camada de Amortecimento para Impermeabilização | D169: m2 | E169: 21738 | G169: 0.3 | J169: =OFFSET(INDEX(Composições!A:H,MATCH('Orçamentária-TR'!B169,Composições!A:A,0),8),2,0) -> 21.25513303 | K169: =IF(ISNUMBER(J169),ROUND(G169*E169*J169,2),"") -> 138613.22 | L169: =BDI!$B$18 -> 0.191 | O169: 25.31 | P169: =IF(ISNUMBER(J169),ROUND(G169*O169*E169,2),"") -> 165056.63
A170: 2.10.4 | B170: SF-00954 | C170: Camada de proteção mecânica simples de impermeabilização | D170: m2 | E170: 6855 | G170: 0.3 | J170: =OFFSET(INDEX(Composições!A:H,MATCH('Orçamentária-TR'!B170,Composições!A:A,0),8),2,0) -> 36.91479149 | K170: =IF(ISNUMBER(J170),ROUND(G170*E170*J170,2),"") -> 75915.27 | L170: =BDI!$B$18 -> 0.191 | O170: 43.97 | P170: =IF(ISNUMBER(J170),ROUND(G170*O170*E170,2),"") -> 90424.31
A171: 2.10.5 | B171: SF-01157 | C171: Camada de Proteção Mecânica em Placas de Impermeabilização | D171: m2 | E171: 19314 | G171: 0.3 | J171: =OFFSET(INDEX(Composições!A:H,MATCH('Orçamentária-TR'!B171,Composições!A:A,0),8),2,0) -> 63.60108317 | K171: =IF(ISNUMBER(J171),ROUND(G171*E171*J171,2),"") -> 368517.4 | L171: =BDI!$B$18 -> 0.191 | O171: 75.75 | P171: =IF(ISNUMBER(J171),ROUND(G171*O171*E171,2),"") -> 438910.65
A172: 2.10.6 | B172: SF-01158 | C172: Pintura Inibidora de Raízes em Estrutura Impermeabilizada | D172: m2 | E172: 2259 | G172: 0.3 | J172: =OFFSET(INDEX(Composições!A:H,MATCH('Orçamentária-TR'!B172,Composições!A:A,0),8),2,0) -> 31.43705 | K172: =IF(ISNUMBER(J172),ROUND(G172*E172*J172,2),"") -> 21304.89 | L172: =BDI!$B$18 -> 0.191 | O172: 37.44 | P172: =IF(ISNUMBER(J172),ROUND(G172*O172*E172,2),"") -> 25373.09
A173: 2.10.7 | B173: SF-01159 | C173: Camada Drenante para Impermeabilização | D173: m2 | E173: 7299 | G173: 0.3 | J173: =OFFSET(INDEX(Composições!A:H,MATCH('Orçamentária-TR'!B173,Composições!A:A,0),8),2,0) -> 27.27102 | K173: =IF(ISNUMBER(J173),ROUND(G173*E173*J173,2),"") -> 59715.35 | L173: =BDI!$B$18 -> 0.191 | O173: 32.48 | P173: =IF(ISNUMBER(J173),ROUND(G173*O173*E173,2),"") -> 71121.46
A174: 2.10.8 | B174: SF-01160 | C174: Calha em Chapa de Aço Galvanizado nº 24 | D174: m2 | E174: 1027 | G174: 0.3 | J174: =OFFSET(INDEX(Composições!A:H,MATCH('Orçamentária-TR'!B174,Composições!A:A,0),8),2,0) -> 98.101066 | K174: =IF(ISNUMBER(J174),ROUND(G174*E174*J174,2),"") -> 30224.94 | L174: =BDI!$B$18 -> 0.191 | O174: 116.84 | P174: =IF(ISNUMBER(J174),ROUND(G174*O174*E174,2),"") -> 35998.4
A175: 2.10.9 | B175: SF-01161 | C175: Rufo em Chapa de Aço Galvanizado nº 24 | D175: m2 | E175: 511 | G175: 0.3 | J175: =OFFSET(INDEX(Composições!A:H,MATCH('Orçamentária-TR'!B175,Composições!A:A,0),8),2,0) -> 87.27233425 | K175: =IF(ISNUMBER(J175),ROUND(G175*E175*J175,2),"") -> 13378.85 | L175: =BDI!$B$18 -> 0.191 | O175: 103.94 | P175: =IF(ISNUMBER(J175),ROUND(G175*O175*E175,2),"") -> 15934
A176: 2.10.10 | B176: SF-01162 | C176: Resina de Poliuretano para Estrutura de Concreto | D176: kg | E176: 666 | G176: 0.3 | J176: 442.15 | K176: =IF(ISNUMBER(J176),ROUND(G176*E176*J176,2),"") -> 88341.57 | L176: =BDI!$B$18 -> 0.191 | O176: 526.6 | P176: =IF(ISNUMBER(J176),ROUND(G176*O176*E176,2),"") -> 105214.68
A177: 2.10.11 | B177: SF-01163 | C177: Chapim Pré-Moldado de Concreto Aparente | D177: m | E177: 837 | G177: 0.3 | J177: =OFFSET(INDEX(Composições!A:H,MATCH('Orçamentária-TR'!B177,Composições!A:A,0),8),2,0) -> 100.0212079 | K177: =IF(ISNUMBER(J177),ROUND(G177*E177*J177,2),"") -> 25115.33 | L177: =BDI!$B$18 -> 0.191 | O177: 119.13 | P177: =IF(ISNUMBER(J177),ROUND(G177*O177*E177,2),"") -> 29913.54
A178: 2.10.12 | B178: SF-01164 | C178: Armação em tela de aço soldado nervurada | D178: m2 | E178: 1800 | G178: 0.3 | J178: =OFFSET(INDEX(Composições!A:H,MATCH('Orçamentária-TR'!B178,Composições!A:A,0),8),2,0) -> 11.21672505 | K178: =IF(ISNUMBER(J178),ROUND(G178*E178*J178,2),"") -> 6057.03 | L178: =BDI!$B$18 -> 0.191 | O178: 13.36 | P178: =IF(ISNUMBER(J178),ROUND(G178*O178*E178,2),"") -> 7214.4
A179: 2.10.13 | B179: SF-01165 | C179: Trama de aço composta por terças para telhados de até 2 águas | D179: m2 | E179: 480 | G179: 0.3 | J179: =OFFSET(INDEX(Composições!A:H,MATCH('Orçamentária-TR'!B179,Composições!A:A,0),8),2,0) -> 27.233289 | K179: =IF(ISNUMBER(J179),ROUND(G179*E179*J179,2),"") -> 3921.59 | L179: =BDI!$B$18 -> 0.191 | O179: 32.43 | P179: =IF(ISNUMBER(J179),ROUND(G179*O179*E179,2),"") -> 4669.92
A180: 2.10.14 | B180: SF-01166 | C180: Revestimento impermeabilizante bloqueador de umidade | D180: m2 | E180: 600 | G180: 0.3 | J180: =OFFSET(INDEX(Composições!A:H,MATCH('Orçamentária-TR'!B180,Composições!A:A,0),8),2,0) -> 13.64853 | K180: =IF(ISNUMBER(J180),ROUND(G180*E180*J180,2),"") -> 2456.74 | L180: =BDI!$B$18 -> 0.191 | O180: 16.26 | P180: =IF(ISNUMBER(J180),ROUND(G180*O180*E180,2),"") -> 2926.8
A181: 2.10.15 | B181: SF-01167 | C181: Pintura com tinta refletiva aluminizada para impermeabilização | D181: m2 | E181: 2000 | G181: 0.3 | J181: =OFFSET(INDEX(Composições!A:H,MATCH('Orçamentária-TR'!B181,Composições!A:A,0),8),2,0) -> 32.1461 | K181: =IF(ISNUMBER(J181),ROUND(G181*E181*J181,2),"") -> 19287.66 | L181: =BDI!$B$18 -> 0.191 | O181: 38.29 | P181: =IF(ISNUMBER(J181),ROUND(G181*O181*E181,2),"") -> 22974
A182: 2.10.16 | B182: SF-01168 | C182: Concreto leve com poliestireno expandido | D182: m3 | E182: 170 | G182: 0.3 | J182: =OFFSET(INDEX(Composições!A:H,MATCH('Orçamentária-TR'!B182,Composições!A:A,0),8),2,0) -> 685.8547146 | K182: =IF(ISNUMBER(J182),ROUND(G182*E182*J182,2),"") -> 34978.59 | L182: =BDI!$B$18 -> 0.191 | O182: 816.85 | P182: =IF(ISNUMBER(J182),ROUND(G182*O182*E182,2),"") -> 41659.35
A183: 2.10.17 | B183: SF-01169 | C183: Colagem da camada de proteção térmica de impermeabilização | D183: m2 | E183: 3350 | G183: 0.3 | J183: =OFFSET(INDEX(Composições!A:H,MATCH('Orçamentária-TR'!B183,Composições!A:A,0),8),2,0) -> 6.84095 | K183: =IF(ISNUMBER(J183),ROUND(G183*E183*J183,2),"") -> 6875.15 | L183: =BDI!$B$18 -> 0.191 | O183: 8.15 | P183: =IF(ISNUMBER(J183),ROUND(G183*O183*E183,2),"") -> 8190.75
A184: 2.11 | C184: Serviços de Manutenção no Sistema de Impermeabilização Rígida | K184: =SUBTOTAL(109,K185) -> 11480.84 | P184: =SUBTOTAL(109,P185) -> 13676.28
A185: 2.11.1 | B185: SF-00083 | C185: Impermeabilização de superfície com revestimento bicomponente semi flexível | D185: m2 | E185: 1863 | G185: 0.3 | J185: =OFFSET(INDEX(Composições!A:H,MATCH('Orçamentária-TR'!B185,Composições!A:A,0),8),2,0) -> 20.54185 | K185: =IF(ISNUMBER(J185),ROUND(G185*E185*J185,2),"") -> 11480.84 | L185: =BDI!$B$18 -> 0.191 | O185: =IF(ISNUMBER(J185),ROUND(J185*(1+L185),2),"") -> 24.47 | P185: =IF(ISNUMBER(J185),ROUND(G185*O185*E185,2),"") -> 13676.28
A186: 2.12 | C186: Serviços de Manutenção no Sistema de Impermeabilização Flexível | K186: =SUBTOTAL(109,K187:K195) -> 1283893.65 | P186: =SUBTOTAL(109,P187:P195) -> 1529133.57
A187: 2.12.1 | B187: SF-00953 | C187: Impermeabilização com emulsão asfáltica | D187: m2 | E187: 2874 | G187: 0.3 | J187: =OFFSET(INDEX(Composições!A:H,MATCH('Orçamentária-TR'!B187,Composições!A:A,0),8),2,0) -> 38.64159 | K187: =IF(ISNUMBER(J187),ROUND(G187*E187*J187,2),"") -> 33316.78 | L187: =BDI!$B$18 -> 0.191 | O187: =IF(ISNUMBER(J187),ROUND(J187*(1+L187),2),"") -> 46.02 | P187: =IF(ISNUMBER(J187),ROUND(G187*O187*E187,2),"") -> 39678.44
A188: 2.12.2 | B188: SF-01170 | C188: Impermeabilização com Membrana de Poliuretano | D188: m2 | E188: 114 | G188: 0.3 | J188: =OFFSET(INDEX(Composições!A:H,MATCH('Orçamentária-TR'!B188,Composições!A:A,0),8),2,0) -> 93.32553 | K188: =IF(ISNUMBER(J188),ROUND(G188*E188*J188,2),"") -> 3191.73 | L188: =BDI!$B$18 -> 0.191 | O188: 111.15 | P188: =IF(ISNUMBER(J188),ROUND(G188*O188*E188,2),"") -> 3801.33
A189: 2.12.3 | B189: SF-01171 | C189: Impermeabilização com Manta Asfáltica | D189: m2 | E189: 21231 | G189: 0.3 | J189: =OFFSET(INDEX(Composições!A:H,MATCH('Orçamentária-TR'!B189,Composições!A:A,0),8),2,0) -> 88.2934275 | K189: =IF(ISNUMBER(J189),ROUND(G189*E189*J189,2),"") -> 562367.33 | L189: =BDI!$B$18 -> 0.191 | O189: 105.16 | P189: =IF(ISNUMBER(J189),ROUND(G189*O189*E189,2),"") -> 669795.59
A190: 2.12.4 | B190: SF-01172 | C190: Impermeabilização com manta asfáltica aluminizada | D190: m2 | E190: 2500 | G190: 0.3 | J190: =OFFSET(INDEX(Composições!A:H,MATCH('Orçamentária-TR'!B190,Composições!A:A,0),8),2,0) -> 63.893865 | K190: =IF(ISNUMBER(J190),ROUND(G190*E190*J190,2),"") -> 47920.4 | L190: =BDI!$B$18 -> 0.191 | O190: 76.1 | P190: =IF(ISNUMBER(J190),ROUND(G190*O190*E190,2),"") -> 57075
A191: 2.12.5 | B191: SF-01173 | C191: Impermeabilização com manta elastomérica de etileno-propileno-dieno-monômero (EPDM) | D191: m2 | E191: 978 | G191: 0.3 | J191: =OFFSET(INDEX(Composições!A:H,MATCH('Orçamentária-TR'!B191,Composições!A:A,0),8),2,0) -> 129.69305 | K191: =IF(ISNUMBER(J191),ROUND(G191*E191*J191,2),"") -> 38051.94 | L191: =BDI!$B$18 -> 0.191 | O191: 154.46 | P191: =IF(ISNUMBER(J191),ROUND(G191*O191*E191,2),"") -> 45318.56
A192: 2.12.6 | B192: SF-01174 | C192: Impermeabilização com membrana acrílica | D192: m2 | E192: 5000 | G192: 0.3 | J192: =OFFSET(INDEX(Composições!A:H,MATCH('Orçamentária-TR'!B192,Composições!A:A,0),8),2,0) -> 33.42955 | K192: =IF(ISNUMBER(J192),ROUND(G192*E192*J192,2),"") -> 50144.33 | L192: =BDI!$B$18 -> 0.191 | O192: 39.81 | P192: =IF(ISNUMBER(J192),ROUND(G192*O192*E192,2),"") -> 59715
A193: 2.12.7 | B193: SF-01175 | C193: Asfalto elastomérico para colagem de manta asfáltica | D193: m2 | E193: 3000 | G193: 0.3 | J193: =OFFSET(INDEX(Composições!A:H,MATCH('Orçamentária-TR'!B193,Composições!A:A,0),8),2,0) -> 29.7655 | K193: =IF(ISNUMBER(J193),ROUND(G193*E193*J193,2),"") -> 26788.95 | L193: =BDI!$B$18 -> 0.191 | O193: 35.45 | P193: =IF(ISNUMBER(J193),ROUND(G193*O193*E193,2),"") -> 31905
A194: 2.12.8 | B194: SF-01176 | C194: Impermeabilização com manta dupla (com maçarico) | D194: m2 | E194: 5650 | G194: 0.3 | J194: =OFFSET(INDEX(Composições!A:H,MATCH('Orçamentária-TR'!B194,Composições!A:A,0),8),2,0) -> 144.26263 | K194: =IF(ISNUMBER(J194),ROUND(G194*E194*J194,2),"") -> 244525.16 | L194: =BDI!$B$18 -> 0.191 | O194: 171.82 | P194: =IF(ISNUMBER(J194),ROUND(G194*O194*E194,2),"") -> 291234.9
A195: 2.12.9 | B195: SF-01177 | C195: Impermeabilização com manta dupla (com asfalto elastomérico) | D195: m2 | E195: 5650 | G195: 0.3 | J195: =OFFSET(INDEX(Composições!A:H,MATCH('Orçamentária-TR'!B195,Composições!A:A,0),8),2,0) -> 163.76816 | K195: =IF(ISNUMBER(J195),ROUND(G195*E195*J195,2),"") -> 277587.03 | L195: =BDI!$B$18 -> 0.191 | O195: 195.05 | P195: =IF(ISNUMBER(J195),ROUND(G195*O195*E195,2),"") -> 330609.75
A196: 2.13 | C196: Serviços de Manutenção no Sistema de Vidraçaria | K196: =SUBTOTAL(109,K197:K274) -> 353053.36 | P196: =SUBTOTAL(109,P197:P274) -> 420490.7
A197: 2.13.1 | B197: SF-00849 | C197: Vidro temperado incolor com 10 mm de espessura | D197: m2 | E197: 360 | G197: 0.3 | J197: =OFFSET(INDEX(Composições!A:H,MATCH('Orçamentária-TR'!B197,Composições!A:A,0),8),2,0) -> 159.7045 | K197: =IF(ISNUMBER(J197),ROUND(G197*E197*J197,2),"") -> 17248.09 | L197: =BDI!$B$18 -> 0.191 | O197: =IF(ISNUMBER(J197),ROUND(J197*(1+L197),2),"") -> 190.21 | P197: =IF(ISNUMBER(J197),ROUND(G197*O197*E197,2),"") -> 20542.68
A198: 2.13.2 | B198: SF-00845 | C198: Vidro temperado incolor com 8mm de espessura | D198: m2 | E198: 150 | G198: 0.3 | J198: =OFFSET(INDEX(Composições!A:H,MATCH('Orçamentária-TR'!B198,Composições!A:A,0),8),2,0) -> 154.0862 | K198: =IF(ISNUMBER(J198),ROUND(G198*E198*J198,2),"") -> 6933.88 | L198: =BDI!$B$18 -> 0.191 | O198: 183.52 | P198: =IF(ISNUMBER(J198),ROUND(G198*O198*E198,2),"") -> 8258.4
A199: 2.13.3 | B199: SF-00881 | C199: Vidro laminado incolor de 8mm de espessura | D199: m2 | E199: 180 | G199: 0.3 | J199: =OFFSET(INDEX(Composições!A:H,MATCH('Orçamentária-TR'!B199,Composições!A:A,0),8),2,0) -> 511.5655 | K199: =IF(ISNUMBER(J199),ROUND(G199*E199*J199,2),"") -> 27624.54 | L199: =BDI!$B$18 -> 0.191 | O199: 609.27 | P199: =IF(ISNUMBER(J199),ROUND(G199*O199*E199,2),"") -> 32900.58
A200: 2.13.4 | B200: SF-00850 | C200: Bucha para pivô de dobradiça para vidro temperado | D200: un | E200: 60 | G200: 0.3 | J200: =OFFSET(INDEX(Composições!A:H,MATCH('Orçamentária-TR'!B200,Composições!A:A,0),8),2,0) -> 6.0724 | K200: =IF(ISNUMBER(J200),ROUND(G200*E200*J200,2),"") -> 109.3 | L200: =BDI!$B$18 -> 0.191 | O200: 7.23 | P200: =IF(ISNUMBER(J200),ROUND(G200*O200*E200,2),"") -> 130.14
A201: 2.13.5 | B201: SF-00851 | C201: Suporte para bandeira de vidro temperado, com ponto de giro para dobradiça | D201: un | E201: 9 | G201: 0.3 | J201: =OFFSET(INDEX(Composições!A:H,MATCH('Orçamentária-TR'!B201,Composições!A:A,0),8),2,0) -> 35.4578 | K201: =IF(ISNUMBER(J201),ROUND(G201*E201*J201,2),"") -> 95.74 | L201: =BDI!$B$18 -> 0.191 | O201: 42.23 | P201: =IF(ISNUMBER(J201),ROUND(G201*O201*E201,2),"") -> 114.02
A202: 2.13.6 | B202: SF-00852 | C202: Suporte de canto, simples, para vidro temperado | D202: un | E202: 9 | G202: 0.3 | J202: =OFFSET(INDEX(Composições!A:H,MATCH('Orçamentária-TR'!B202,Composições!A:A,0),8),2,0) -> 13.6724 | K202: =IF(ISNUMBER(J202),ROUND(G202*E202*J202,2),"") -> 36.92 | L202: =BDI!$B$18 -> 0.191 | O202: 16.28 | P202: =IF(ISNUMBER(J202),ROUND(G202*O202*E202,2),"") -> 43.96
... 218 more rows

Sheet Composições
A1: Manutenção Civil
A2: COMPOSIÇÕES DE CUSTO UNITÁRIO
A5: ITEM | B5: DESCRIÇÃO | C5: DISCRIMINAÇÃO DA COMPOSIÇÃO | D5: UNIDADE | E5: COEFICIENTE | F5: CUSTO UNITÁRIO | G5: CUSTO TOTAL | H5: TOTAL DO SERVIÇO | J5: QTD
A6: SF-00001 | B6: =INDEX('Orçamentária-TR'!B:C,MATCH(Composições!A6,'Orçamentária-TR'!B:B,0),2) ->  | D6: =TRIM(INDEX('Orçamentária-TR'!C:C,MATCH(Composições!A6,'Orçamentária-TR'!A:A,0),1)) ->  | G6: =IF(ISNUMBER(F6),E6*F6,"") ->  | J6: 0
J7: 0
C8: Engenheiro civil de obra junior com encargos complementares | D8: h | E8: 1 | F8: 82.935 | G8: 82.935 | H8: =SUM(G8:G8) -> 82.935 | J8: 0
J9: 0
A10: SF-00002 | B10: =INDEX('Orçamentária-TR'!B:C,MATCH(Composições!A10,'Orçamentária-TR'!B:B,0),2) ->  | D10: =TRIM(INDEX('Orçamentária-TR'!C:C,MATCH(Composições!A10,'Orçamentária-TR'!A:A,0),1)) ->  | J10: 0
J11: 0
C12: Mestre de obras com encargos complementares | D12: h | E12: 1 | F12: 25.3745 | G12: 25.3745 | H12: =SUM(G12:G12) -> 25.3745 | J12: 0
J13: 0
A14: SF-00003 | B14: =INDEX('Orçamentária-TR'!B:C,MATCH(Composições!A14,'Orçamentária-TR'!B:B,0),2) ->  | D14: =TRIM(INDEX('Orçamentária-TR'!C:C,MATCH(Composições!A14,'Orçamentária-TR'!A:A,0),1)) ->  | J14: 0
J15: 0
C16: Engenheiro Civil de Obra Pleno com encargos complementares | D16: h | E16: 16 | F16: 94.2495 | G16: 1507.992 | H16: =SUM(G16:G16) -> 1507.992 | J16: 0
J17: 0
A18: SF-00004 | B18: =INDEX('Orçamentária-TR'!B:C,MATCH(Composições!A18,'Orçamentária-TR'!B:B,0),2) -> Projetos de segurança do trabalho | D18: =TRIM(INDEX('Orçamentária-TR'!D:D,MATCH(Composições!A18,'Orçamentária-TR'!B:B,0),1)) -> un | J18: 20
J19: 20
C20: Engenheiro Civil Pleno com encargos complementares | D20: h | E20: 20 | F20: 94.5725 | G20: 1891.45 | H20: =SUM(G20:G21) -> 2125.39 | J20: 20
C21: Anotação de Responsabilidade Técnica | D21: un | E21: 1 | F21: 233.94 | G21: 233.94 | J21: 20
J22: 20
A23: SF-00005 | B23: =INDEX('Orçamentária-TR'!B:C,MATCH(Composições!A23,'Orçamentária-TR'!B:B,0),2) ->  | D23: =TRIM(INDEX('Orçamentária-TR'!C:C,MATCH(Composições!A23,'Orçamentária-TR'!A:A,0),1)) ->  | J23: 0
J24: 0
C25: Pedreiro com Encargos Complementares | D25: h | E25: 0.225 | F25: 21.3275 | G25: 4.7986875 | H25: =SUM(G25:G26) -> 41.4166123 | J25: 0
C26: Servente com Encargos Complementares | D26: h | E26: 2.3248 | F26: 15.751 | G26: 36.6179248 | J26: 0
J27: 0
A28: SF-00006 | B28: =INDEX('Orçamentária-TR'!B:C,MATCH(Composições!A28,'Orçamentária-TR'!B:B,0),2) ->  | D28: =TRIM(INDEX('Orçamentária-TR'!C:C,MATCH(Composições!A28,'Orçamentária-TR'!A:A,0),1)) ->  | J28: 0
J29: 0
C30: Pedreiro com Encargos Complementares | D30: h | E30: 1.3 | F30: 21.3275 | G30: 27.72575 | H30: =SUM(G30:G31) -> 232.48875 | J30: 0
C31: Servente com Encargos Complementares | D31: h | E31: 13 | F31: 15.751 | G31: 204.763 | J31: 0
J32: 0
A33: SF-00007 | B33: =INDEX('Orçamentária-TR'!B:C,MATCH(Composições!A33,'Orçamentária-TR'!B:B,0),2) ->  | D33: =TRIM(INDEX('Orçamentária-TR'!C:C,MATCH(Composições!A33,'Orçamentária-TR'!A:A,0),1)) ->  | J33: 0
J34: 0
C35: Servente com Encargos Complementares | D35: h | E35: 0.7 | F35: 15.751 | G35: 11.0257 | H35: =SUM(G35:G35) -> 11.0257 | J35: 0
J36: 0
A37: SF-00008 | B37: =INDEX('Orçamentária-TR'!B:C,MATCH(Composições!A37,'Orçamentária-TR'!B:B,0),2) ->  | D37: =TRIM(INDEX('Orçamentária-TR'!C:C,MATCH(Composições!A37,'Orçamentária-TR'!A:A,0),1)) ->  | J37: 0
J38: 0
C39: Montador de estrutura metálica com encargos complementares | D39: h | E39: 0.1186 | F39: 16.3115 | G39: 1.9345439 | H39: =SUM(G39:G40) -> 5.6029518 | J39: 0
C40: Servente com Encargos Complementares | D40: h | E40: 0.2329 | F40: 15.751 | G40: 3.6684079 | J40: 0
J41: 0
A42: SF-00009 | B42: =INDEX('Orçamentária-TR'!B:C,MATCH(Composições!A42,'Orçamentária-TR'!B:B,0),2) ->  | D42: =TRIM(INDEX('Orçamentária-TR'!C:C,MATCH(Composições!A42,'Orçamentária-TR'!A:A,0),1)) ->  | J42: 0
J43: 0
C44: Montador de estrutura metálica com encargos complementares | D44: h | E44: 0.0258 | F44: 16.3115 | G44: 0.4208367 | H44: =SUM(G44:G45) -> 1.2194124 | J44: 0
C45: Servente com Encargos Complementares | D45: h | E45: 0.0507 | F45: 15.751 | G45: 0.7985757 | J45: 0
J46: 0
A47: SF-00010 | B47: =INDEX('Orçamentária-TR'!B:C,MATCH(Composições!A47,'Orçamentária-TR'!B:B,0),2) ->  | D47: =TRIM(INDEX('Orçamentária-TR'!C:C,MATCH(Composições!A47,'Orçamentária-TR'!A:A,0),1)) ->  | J47: 0
J48: 0
C49: Eletricista com encargos complementares | D49: h | E49: =ROUND(0.0096*5,4) -> 0.048 | F49: 21.527 | G49: 1.033296 | H49: =SUM(G49:G50) -> 2.51389 | J49: 0
C50: Servente com Encargos Complementares | D50: h | E50: =ROUND(0.0188*5,4) -> 0.094 | F50: 15.751 | G50: 1.480594 | J50: 0
J51: 0
A52: SF-00011 | B52: =INDEX('Orçamentária-TR'!B:C,MATCH(Composições!A52,'Orçamentária-TR'!B:B,0),2) ->  | D52: =TRIM(INDEX('Orçamentária-TR'!C:C,MATCH(Composições!A52,'Orçamentária-TR'!A:A,0),1)) ->  | J52: 0
J53: 0
C54: Martelete ou rompedor pneumático manual, 28 kg, com silenciador - CHP diurno. AF_07/2016 | D54: chp | E54: 0.0699 | F54: 19.4845 | G54: 1.36196655 | H54: =SUM(G54:G57) -> 9.16216195 | J54: 0
C55: Martelete ou rompedor pneumático manual, 28 kg, com silenciador - CHI diurno. AF_07/2016 | D55: chi | E55: 0.0482 | F55: 18.1735 | G55: 0.8759627 | J55: 0
C56: Azulejista ou ladrilhista com encargos complementares | D56: h | E56: 0.1055 | F56: 21.261 | G56: 2.2430355 | J56: 0
C57: Servente com Encargos Complementares | D57: h | E57: 0.2972 | F57: 15.751 | G57: 4.6811972 | J57: 0
J58: 0
A59: SF-00012 | B59: =INDEX('Orçamentária-TR'!B:C,MATCH(Composições!A59,'Orçamentária-TR'!B:B,0),2) ->  | D59: =TRIM(INDEX('Orçamentária-TR'!C:C,MATCH(Composições!A59,'Orçamentária-TR'!A:A,0),1)) ->  | J59: 0
J60: 0
C61: Pedreiro com Encargos Complementares | D61: h | E61: 0.0374 | F61: 21.3275 | G61: 0.7976485 | H61: =SUM(G61:G62) -> 2.4562288 | J61: 0
C62: Servente com Encargos Complementares | D62: h | E62: 0.1053 | F62: 15.751 | G62: 1.6585803 | J62: 0
J63: 0
A64: SF-00013 | B64: =INDEX('Orçamentária-TR'!B:C,MATCH(Composições!A64,'Orçamentária-TR'!B:B,0),2) ->  | D64: =TRIM(INDEX('Orçamentária-TR'!C:C,MATCH(Composições!A64,'Orçamentária-TR'!A:A,0),1)) ->  | J64: 0
J65: 0
C66: Encanador ou Bombeiro Hidráulico com Encargos Complementares | D66: h | E66: 0.0071 | F66: 20.9285 | G66: 0.14859235 | H66: =SUM(G66:G67) -> 0.36910635 | J66: 0
C67: Servente com Encargos Complementares | D67: h | E67: 0.014 | F67: 15.751 | G67: 0.220514 | J67: 0
J68: 0
A69: SF-00014 | B69: =INDEX('Orçamentária-TR'!B:C,MATCH(Composições!A69,'Orçamentária-TR'!B:B,0),2) ->  | D69: =TRIM(INDEX('Orçamentária-TR'!C:C,MATCH(Composições!A69,'Orçamentária-TR'!A:A,0),1)) ->  | J69: 0
G70: =IF(ISNUMBER(F70),E70*F70,"") ->  | J70: 0
C71: Martelete ou rompedor pneumático manual, 28 kg, com silenciador - CHP diurno. AF_07/2016 | D71: chp | E71: 3.2468 | F71: 19.4845 | G71: 63.2622746 | H71: =SUM(G71:G75) -> 208.3252378 | J71: 0
C72: Martelete ou rompedor pneumático manual, 28 kg, com silenciador - CHI diurno. AF_07/2016 | D72: chi | E72: 0.9202 | F72: 18.1735 | G72: 16.7232547 | J72: 0
C73: CABO DE ACO GALVANIZADO, DIAMETRO 9,53 MM (3/8"), COM ALMA DE FIBRA 6 X 25 F | D73: kg | E73: 0.2835 | F73: 39.311 | G73: 11.1446685 | J73: 0
C74: Pedreiro com Encargos Complementares | D74: h | E74: 0.6366 | F74: 21.3275 | G74: 13.5770865 | J74: 0
C75: Servente com Encargos Complementares | D75: h | E75: 6.5785 | F75: 15.751 | G75: 103.6179535 | J75: 0
J76: 0
A77: SF-00016 | B77: =INDEX('Orçamentária-TR'!B:C,MATCH(Composições!A77,'Orçamentária-TR'!B:B,0),2) ->  | D77: =TRIM(INDEX('Orçamentária-TR'!C:C,MATCH(Composições!A77,'Orçamentária-TR'!A:A,0),1)) ->  | J77: 0
J78: 0
C79: Carpinteiro de esquadria com encargos complementares | D79: h | E79: 0.35 | F79: 21.223 | G79: 7.42805 | H79: =SUM(G79:G80) -> 12.9409 | J79: 0
C80: Servente com Encargos Complementares | D80: h | E80: 0.35 | F80: 15.751 | G80: 5.51285 | J80: 0
J81: 0
A82: SF-00017 | B82: =INDEX('Orçamentária-TR'!B:C,MATCH(Composições!A82,'Orçamentária-TR'!B:B,0),2) ->  | D82: =TRIM(INDEX('Orçamentária-TR'!C:C,MATCH(Composições!A82,'Orçamentária-TR'!A:A,0),1)) ->  | J82: 0
J83: 0
C84: Pedreiro com Encargos Complementares | D84: h | E84: 0.15 | F84: 21.3275 | G84: 3.199125 | H84: =SUM(G84:G85) -> 18.950125 | J84: 0
C85: Servente com Encargos Complementares | D85: h | E85: 1 | F85: 15.751 | G85: 15.751 | J85: 0
J86: 0
A87: SF-00018 | B87: =INDEX('Orçamentária-TR'!B:C,MATCH(Composições!A87,'Orçamentária-TR'!B:B,0),2) ->  | D87: =TRIM(INDEX('Orçamentária-TR'!C:C,MATCH(Composições!A87,'Orçamentária-TR'!A:A,0),1)) ->  | J87: 0
J88: 0
C89: Pedreiro com Encargos Complementares | D89: h | E89: =0.08/2 -> 0.04 | F89: 21.3275 | G89: 0.8531 | H89: =SUM(G89:G90) -> 7.1535 | J89: 0
C90: Servente com Encargos Complementares | D90: h | E90: =0.8/2 -> 0.4 | F90: 15.751 | G90: 6.3004 | J90: 0
J91: 0
A92: SF-00019 | B92: =INDEX('Orçamentária-TR'!B:C,MATCH(Composições!A92,'Orçamentária-TR'!B:B,0),2) ->  | D92: =TRIM(INDEX('Orçamentária-TR'!C:C,MATCH(Composições!A92,'Orçamentária-TR'!A:A,0),1)) ->  | J92: 0
J93: 0
C94: Eletricista com encargos complementares | D94: h | E94: =0.75*0.1 -> 0.075 | F94: 21.527 | G94: 1.614525 | H94: =SUM(G94:G95) -> 3.977175 | J94: 0
C95: Servente com Encargos Complementares | D95: h | E95: =0.75*0.2 -> 0.15 | F95: 15.751 | G95: 2.36265 | J95: 0
J96: 0
A97: SF-00020 | B97: =INDEX('Orçamentária-TR'!B:C,MATCH(Composições!A97,'Orçamentária-TR'!B:B,0),2) ->  | D97: =TRIM(INDEX('Orçamentária-TR'!C:C,MATCH(Composições!A97,'Orçamentária-TR'!A:A,0),1)) ->  | J97: 0
J98: 0
C99: Pedreiro com Encargos Complementares | D99: h | E99: 0.01 | F99: 21.3275 | G99: 0.213275 | H99: =SUM(G99:G100) -> 1.788375 | J99: 0
C100: Servente com Encargos Complementares | D100: h | E100: 0.1 | F100: 15.751 | G100: 1.5751 | J100: 0
J101: 0
A102: SF-00021 | B102: =INDEX('Orçamentária-TR'!B:C,MATCH(Composições!A102,'Orçamentária-TR'!B:B,0),2) ->  | D102: =TRIM(INDEX('Orçamentária-TR'!C:C,MATCH(Composições!A102,'Orçamentária-TR'!A:A,0),1)) ->  | J102: 0
J103: 0
C104: Ajudante especializado com encargos complementares | D104: h | E104: =ROUND(1/6,4) -> 0.1667 | F104: 18.715 | G104: 3.1197905 | H104: =SUM(G104:G104) -> 3.1197905 | J104: 0
J105: 0
A106: SF-00022 | B106: =INDEX('Orçamentária-TR'!B:C,MATCH(Composições!A106,'Orçamentária-TR'!B:B,0),2) ->  | D106: =TRIM(INDEX('Orçamentária-TR'!C:C,MATCH(Composições!A106,'Orçamentária-TR'!A:A,0),1)) ->  | J106: 0
J107: 0
C108: Ajudante de operação em geral com encargos complementares | D108: h | E108: 0.6 | F108: 16.8435 | G108: 10.1061 | H108: =SUM(G108:G109) -> 19.5567 | J108: 0
C109: Servente com Encargos Complementares | D109: h | E109: 0.6 | F109: 15.751 | G109: 9.4506 | J109: 0
J110: 0
A111: SF-00023 | B111: =INDEX('Orçamentária-TR'!B:C,MATCH(Composições!A111,'Orçamentária-TR'!B:B,0),2) ->  | D111: =TRIM(INDEX('Orçamentária-TR'!C:C,MATCH(Composições!A111,'Orçamentária-TR'!A:A,0),1)) ->  | J111: 0
J112: 0
C113: Marmorista/graniteiro com encargos complementares | D113: h | E113: 0.6 | F113: 17.7935 | G113: 10.6761 | H113: =SUM(G113:G114) -> 29.5773 | J113: 0
C114: Servente com Encargos Complementares | D114: h | E114: 1.2 | F114: 15.751 | G114: 18.9012 | J114: 0
J115: 0
A116: SF-00024 | B116: =INDEX('Orçamentária-TR'!B:C,MATCH(Composições!A116,'Orçamentária-TR'!B:B,0),2) ->  | D116: =TRIM(INDEX('Orçamentária-TR'!C:C,MATCH(Composições!A116,'Orçamentária-TR'!A:A,0),1)) ->  | J116: 0
J117: 0
C118: Carpinteiro de esquadria com encargos complementares | D118: h | E118: 1.2 | F118: 21.223 | G118: 25.4676 | H118: =SUM(G118:G118) -> 25.4676 | J118: 0
J119: 0
A120: SF-00025 | B120: =INDEX('Orçamentária-TR'!B:C,MATCH(Composições!A120,'Orçamentária-TR'!B:B,0),2) ->  | D120: =TRIM(INDEX('Orçamentária-TR'!C:C,MATCH(Composições!A120,'Orçamentária-TR'!A:A,0),1)) ->  | J120: 0
J121: 0
C122: Encanador ou Bombeiro Hidráulico com Encargos Complementares | D122: h | E122: 0.175 | F122: 20.9285 | G122: 3.6624875 | H122: =SUM(G122:G123) -> 8.3877875 | J122: 0
C123: Servente com Encargos Complementares | D123: h | E123: 0.3 | F123: 15.751 | G123: 4.7253 | J123: 0
J124: 0
A125: SF-00026 | B125: =INDEX('Orçamentária-TR'!B:C,MATCH(Composições!A125,'Orçamentária-TR'!B:B,0),2) ->  | D125: =TRIM(INDEX('Orçamentária-TR'!C:C,MATCH(Composições!A125,'Orçamentária-TR'!A:A,0),1)) ->  | J125: 0
J126: 0
C127: Pedreiro com Encargos Complementares | D127: h | E127: 0.05 | F127: 21.3275 | G127: 1.066375 | H127: =SUM(G127:G128) -> 8.941875 | J127: 0
C128: Servente com Encargos Complementares | D128: h | E128: 0.5 | F128: 15.751 | G128: 7.8755 | J128: 0
J129: 0
A130: SF-00027 | B130: =INDEX('Orçamentária-TR'!B:C,MATCH(Composições!A130,'Orçamentária-TR'!B:B,0),2) ->  | D130: =TRIM(INDEX('Orçamentária-TR'!C:C,MATCH(Composições!A130,'Orçamentária-TR'!A:A,0),1)) ->  | J130: 0
J131: 0
C132: Eletricista com encargos complementares | D132: h | E132: 0.3 | F132: 21.527 | G132: 6.4581 | H132: =SUM(G132:G132) -> 6.4581 | J132: 0
J133: 0
A134: SF-00028 | B134: =INDEX('Orçamentária-TR'!B:C,MATCH(Composições!A134,'Orçamentária-TR'!B:B,0),2) ->  | D134: =TRIM(INDEX('Orçamentária-TR'!C:C,MATCH(Composições!A134,'Orçamentária-TR'!A:A,0),1)) ->  | G134: =IF(ISNUMBER(F134),E134*F134,"") ->  | J134: 0
J135: 0
C136: Carpinteiro de esquadria com encargos complementares | D136: h | E136: =0.25 -> 0.25 | F136: 21.223 | G136: 5.30575 | H136: =SUM(G136:G136) -> 5.30575 | J136: 0
J137: 0
A138: SF-00029 | B138: =INDEX('Orçamentária-TR'!B:C,MATCH(Composições!A138,'Orçamentária-TR'!B:B,0),2) ->  | D138: =TRIM(INDEX('Orçamentária-TR'!C:C,MATCH(Composições!A138,'Orçamentária-TR'!A:A,0),1)) ->  | J138: 0
J139: 0
C140: Pedreiro com Encargos Complementares | D140: h | E140: 0.1315 | F140: 21.3275 | G140: 2.80456625 | H140: =SUM(G140:G141) -> 6.87147445 | J140: 0
C141: Servente com Encargos Complementares | D141: h | E141: 0.2582 | F141: 15.751 | G141: 4.0669082 | J141: 0
J142: 0
A143: SF-00030 | B143: =INDEX('Orçamentária-TR'!B:C,MATCH(Composições!A143,'Orçamentária-TR'!B:B,0),2) ->  | D143: =TRIM(INDEX('Orçamentária-TR'!C:C,MATCH(Composições!A143,'Orçamentária-TR'!A:A,0),1)) ->  | J143: 0
J144: 0
C145: Pedreiro com Encargos Complementares | D145: h | E145: 0.09 | F145: 21.3275 | G145: 1.919475 | H145: =SUM(G145:G146) -> 16.095375 | J145: 0
C146: Servente com Encargos Complementares | D146: h | E146: 0.9 | F146: 15.751 | G146: 14.1759 | J146: 0
J147: 0
A148: SF-00031 | B148: =INDEX('Orçamentária-TR'!B:C,MATCH(Composições!A148,'Orçamentária-TR'!B:B,0),2) ->  | D148: =TRIM(INDEX('Orçamentária-TR'!C:C,MATCH(Composições!A148,'Orçamentária-TR'!A:A,0),1)) ->  | J148: 0
J149: 0
C150: Encanador ou Bombeiro Hidráulico com Encargos Complementares | D150: h | E150: 0.1755 | F150: 20.9285 | G150: 3.67295175 | H150: =SUM(G150:G151) -> 9.10389655 | J150: 0
C151: Servente com Encargos Complementares | D151: h | E151: 0.3448 | F151: 15.751 | G151: 5.4309448 | J151: 0
J152: 0
A153: SF-00032 | B153: =INDEX('Orçamentária-TR'!B:C,MATCH(Composições!A153,'Orçamentária-TR'!B:B,0),2) ->  | D153: =TRIM(INDEX('Orçamentária-TR'!C:C,MATCH(Composições!A153,'Orçamentária-TR'!A:A,0),1)) ->  | J153: 0
J154: 0
C155: Eletricista com encargos complementares | D155: h | E155: =0.0183*5 -> 0.0915 | F155: 21.527 | G155: 1.9697205 | H155: =SUM(G155:G156) -> 4.797025 | J155: 0
C156: Servente com Encargos Complementares | D156: h | E156: =0.0359*5 -> 0.1795 | F156: 15.751 | G156: 2.8273045 | J156: 0
J157: 0
C158: Obs.: Remoção com reaproveitamento | J158: 0
J159: 0
A160: SF-00033 | B160: =INDEX('Orçamentária-TR'!B:C,MATCH(Composições!A160,'Orçamentária-TR'!B:B,0),2) ->  | D160: =TRIM(INDEX('Orçamentária-TR'!C:C,MATCH(Composições!A160,'Orçamentária-TR'!A:A,0),1)) ->  | J160: 0
J161: 0
C162: Encanador ou Bombeiro Hidráulico com Encargos Complementares | D162: h | E162: 0.128 | F162: 20.9285 | G162: 2.678848 | H162: =SUM(G162:G163) -> 6.6386494 | J162: 0
C163: Servente com Encargos Complementares | D163: h | E163: 0.2514 | F163: 15.751 | G163: 3.9598014 | J163: 0
J164: 0
A165: SF-00034 | B165: =INDEX('Orçamentária-TR'!B:C,MATCH(Composições!A165,'Orçamentária-TR'!B:B,0),2) ->  | D165: =TRIM(INDEX('Orçamentária-TR'!C:C,MATCH(Composições!A165,'Orçamentária-TR'!A:A,0),1)) ->  | J165: 0
J166: 0
C167: Servente com Encargos Complementares | D167: h | E167: 0.35 | F167: 15.751 | G167: 5.51285 | H167: =SUM(G167:G168) -> 12.977475 | J167: 0
C168: Pedreiro com Encargos Complementares | D168: h | E168: 0.35 | F168: 21.3275 | G168: 7.464625 | J168: 0
J169: 0
A170: SF-00035 | B170: =INDEX('Orçamentária-TR'!B:C,MATCH(Composições!A170,'Orçamentária-TR'!B:B,0),2) -> Remoção de película | D170: =TRIM(INDEX('Orçamentária-TR'!D:D,MATCH(Composições!A170,'Orçamentária-TR'!B:B,0),1)) -> m2 | J170: 1140
J171: 1140
C172: Vidraceiro com encargos complementares | D172: h | E172: 0.4 | F172: 19.836 | G172: 7.9344 | H172: =SUM(G172:G172) -> 7.9344 | J172: 1140
J173: 1140
A174: SF-00036 | B174: =INDEX('Orçamentária-TR'!B:C,MATCH(Composições!A174,'Orçamentária-TR'!B:B,0),2) ->  | D174: =TRIM(INDEX('Orçamentária-TR'!C:C,MATCH(Composições!A174,'Orçamentária-TR'!A:A,0),1)) ->  | J174: 0
J175: 0
C176: Ajudante especializado com encargos complementares | D176: h | E176: =ROUND(1/6,4) -> 0.1667 | F176: 18.715 | G176: 3.1197905 | H176: =SUM(G176:G176) -> 3.1197905 | J176: 0
J177: 0
A178: SF-00037 | B178: =INDEX('Orçamentária-TR'!B:C,MATCH(Composições!A178,'Orçamentária-TR'!B:B,0),2) -> Remoção de pintura ou textura | D178: =TRIM(INDEX('Orçamentária-TR'!D:D,MATCH(Composições!A178,'Orçamentária-TR'!B:B,0),1)) -> m2 | J178: 20000
J179: 20000
C180: Servente com Encargos Complementares | D180: h | E180: 0.4 | F180: 15.751 | G180: 6.3004 | H180: =SUM(G180:G180) -> 6.3004 | J180: 20000
J181: 20000
A182: SF-00038 | B182: =INDEX('Orçamentária-TR'!B:C,MATCH(Composições!A182,'Orçamentária-TR'!B:B,0),2) ->  | D182: =TRIM(INDEX('Orçamentária-TR'!C:C,MATCH(Composições!A182,'Orçamentária-TR'!A:A,0),1)) ->  | J182: 0
J183: 0
C184: Montador de estrutura metálica com encargos complementares | D184: h | E184: =0.0258*3 -> 0.0774 | F184: 16.3115 | G184: 1.2625101 | H184: =SUM(G184:G185) -> 3.6582372 | J184: 0
C185: Servente com Encargos Complementares | D185: h | E185: =0.0507*3 -> 0.1521 | F185: 15.751 | G185: 2.3957271 | J185: 0
J186: 0
C187: Obs.: remoção com reaproveitamento | J187: 0
J188: 0
A189: SF-00039 | B189: =INDEX('Orçamentária-TR'!B:C,MATCH(Composições!A189,'Orçamentária-TR'!B:B,0),2) ->  | D189: =TRIM(INDEX('Orçamentária-TR'!C:C,MATCH(Composições!A189,'Orçamentária-TR'!A:A,0),1)) ->  | J189: 0
J190: 0
C191: Auxiliar de eletricista com encargos complementares | D191: h | E191: 0.5 | F191: 16.7675 | G191: 8.38375 | H191: =SUM(G191:G194) -> 56.22575 | J191: 0
C192: Eletricista com encargos complementares | D192: h | E192: 0.5 | F192: 21.527 | G192: 10.7635 | J192: 0
C193: Pedreiro com Encargos Complementares | D193: h | E193: 1 | F193: 21.3275 | G193: 21.3275 | J193: 0
C194: Servente com Encargos Complementares | D194: h | E194: 1 | F194: 15.751 | G194: 15.751 | J194: 0
J195: 0
A196: SF-00040 | B196: =INDEX('Orçamentária-TR'!B:C,MATCH(Composições!A196,'Orçamentária-TR'!B:B,0),2) ->  | D196: =TRIM(INDEX('Orçamentária-TR'!C:C,MATCH(Composições!A196,'Orçamentária-TR'!A:A,0),1)) ->  | J196: 0
J197: 0
C198: Servente com Encargos Complementares | D198: h | E198: 0.2 | F198: 15.751 | G198: =IF(ISNUMBER(F198),E198*F198,"") -> 3.1502 | H198: =SUM(G198:G198) -> 3.1502 | J198: 0
J199: 0
A200: SF-00041 | B200: =INDEX('Orçamentária-TR'!B:C,MATCH(Composições!A200,'Orçamentária-TR'!B:B,0),2) ->  | D200: =TRIM(INDEX('Orçamentária-TR'!C:C,MATCH(Composições!A200,'Orçamentária-TR'!A:A,0),1)) ->  | J200: 0
J201: 0
C202: Servente com Encargos Complementares | D202: h | E202: =0.437*0.2 -> 0.0874 | F202: 15.751 | G202: 1.3766374 | H202: =SUM(G202:G202) -> 1.3766374 | J202: 0
... 4223 more rows

Sheet Comp.Aux1
A1: Manutenção Civil
A2: COMPOSIÇÕES DE CUSTO UNITÁRIO AUXILIARES DE 1º NÍVEL
A5: DESCRIÇÃO | B5: DISCRIMINAÇÃO DA COMPOSIÇÃO | C5: UNIDADE | D5: COEFICIENTE | E5: CUSTO UNITÁRIO | F5: CUSTO TOTAL | G5: TOTAL | I5: QTD
A6: ARGAMASSA TRAÇO 1:3 (EM VOLUME DE CIMENTO E AREIA MÉDIA ÚMIDA), PREPARO MANUAL. AF_08/2019 | C6: M3 | F6: =IF(ISNUMBER(E6),E6*$D6,"") ->  | I6: 1.3275
I7: 1.3275
B8: Areia media - posto jazida/fornecedor (retirado na jazida, sem transporte) | C8: M3 | D8: 1.07 | E8: 93.8125 | F8: 100.379375 | G8: =SUM(F8:F12) -> 447.5505081 | I8: 1.3275
B9: Cimento Portland composto CP II-32 | C9: KG | D9: 482.96 | E9: 0.3895 | F9: 188.11292 | I9: 1.3275
B10: Servente com encargos complementares | C10: H | D10: 8.57 | E10: 15.751 | F10: 134.98607 | I10: 1.3275
B11: CARGA, MANOBRAS E DESCARGA DE AREIA, BRITA, PEDRA DE MAO E SOLOS COM CAMINHAO BASCULANTE 6 M3 (DESCARGA LIVRE) | C11: M3 | D11: =ROUND(1*D8,4) -> 1.07 | E11: 0.758366 | F11: 0.81145162 | I11: 1.3275
B12: TRANSPORTE COM CAMINHÃO BASCULANTE DE 6 M3, EM VIA URBANA PAVIMENTADA, DMT ATÉ 30 KM (UNIDADE: M3xKM). AF_01/2018 | C12: M3xKM | D12: =ROUND(D8*20,4) -> 21.4 | E12: 1.0869482 | F12: 23.26069148 | I12: 1.3275
I13: 1.3275
B14: Obs.: Considerando fornecedor de areia a 20 km do Senado Federal. | I14: 1.3275
I15: 1.3275
A16: Fixação utilizando parafuso e bucha de nylon, somente mão de obra. af_10/2016 | C16: UN | I16: 0
I17: 0
B18: Auxiliar de encanador ou bombeiro hidráulico com encargos complementares | C18: H | D18: 0.0227 | E18: 16.321 | F18: 0.3704867 | G18: =SUM(F18:F19) -> 3.76299655 | I18: 0
B19: Encanador ou bombeiro hidráulico com encargos complementares | C19: H | D19: 0.1621 | E19: 20.9285 | F19: 3.39250985 | I19: 0
I20: 0
A21: Fixação de tubos horizontais de PVC, CPVC ou cobre diâmetros menores ou iguais a 40 mm ou eletrocalhas até 150mm de largura, com abraçadeira metálica rígida tipo d 1/2, fixada em perfilado em laje. af_05/2015 | C21: M | I21: 0
I22: 0
B23: Abracadeira em aco para amarracao de eletrodutos, tipo D, com 1/2" e parafuso de fixacao | C23: UN | D23: 0.65 | E23: 1.0355 | F23: 0.673075 | G23: =SUM(F23:F25) -> 2.2803515 | I23: 0
B24: Auxiliar de encanador ou bombeiro hidráulico com encargos complementares | C24: H | D24: 0.01 | E24: 16.321 | F24: 0.16321 | I24: 0
B25: Encanador ou bombeiro hidráulico com encargos complementares | C25: H | D25: 0.069 | E25: 20.9285 | F25: 1.4440665 | I25: 0
I26: 0
A27: Fabricação de fôrma para vigas, em chapa de madeira compensada resinada, E = 17 mm. AF_12/2015 | C27: M2 | I27: 0
I28: 0
B29: Chapa de madeira compensada resinada para forma de concreto, de *2,2 x 1,1* m, e = 17 mm | C29: M2 | D29: 1.19 | E29: 28.063 | F29: 33.39497 | G29: =SUM(F29:F36) -> 76.1412935 | I29: 0
B30: PONTALETE DE MADEIRA NAO APARELHADA *7,5 X 7,5* CM (3 X 3 ") PINUS, MISTA OU EQUIVALENTE DA REGIAO | C30: M | D30: 0.162 | E30: 3.3725 | F30: 0.546345 | I30: 0
B31: SARRAFO DE MADEIRA NAO APARELHADA *2,5 X 7,5* CM (1 X 3 ") PINUS, MISTA OU EQUIVALENTE DA REGIAO | C31: M | D31: 7.734 | E31: 1.2065 | F31: 9.331071 | I31: 0
B32: Prego de aco polido com cabeca 17 x 21 (2 x 11) | C32: KG | D32: 0.155 | E32: 9.8325 | F32: 1.5240375 | I32: 0
B33: Ajudante de carpinteiro com encargos complementares | C33: H | D33: 0.222 | E33: 17.8695 | F33: 3.967029 | I33: 0
B34: Carpinteiro de formas com encargos complementares | C34: H | D34: 1.111 | E34: 21.185 | F34: 23.536535 | I34: 0
B35: Serra circular de bancada com motor elétrico potência de 5HP, com coifa para disco 10" - CHP diurno. af_08/2015 | C35: CHP | D35: 0.054 | E35: 18.6295 | F35: 1.005993 | I35: 0
B36: Serra circular de bancada com motor elétrico potência de 5HP, com coifa para disco 10" - CHI diurno. af_08/2015 | C36: CHI | D36: 0.169 | E36: 16.777 | F36: 2.835313 | I36: 0
I37: 0
A38: Fabricação de escoras de viga do tipo garfo, em madeira. af_12/2015 | C38: M | I38: 0
I39: 0
B40: Chapa de madeira compensada plastificada para forma de concreto, de 2,20 x 1,10 m, e = 18 mm | C40: M2 | D40: 0.126 | E40: 35.9005 | F40: 4.523463 | G40: =SUM(F40:F46) -> 17.2050415 | I40: 0
B41: PONTALETE DE MADEIRA NAO APARELHADA *7,5 X 7,5* CM (3 X 3 ") PINUS, MISTA OU EQUIVALENTE DA REGIAO | C41: M | D41: 2.27 | E41: 3.3725 | F41: 7.655575 | I41: 0
B42: Prego de aco polido com cabeca 17 x 21 (2 x 11) | C42: KG | D42: 0.017 | E42: 9.8325 | F42: 0.1671525 | I42: 0
B43: Ajudante de carpinteiro com encargos complementares | C43: H | D43: 0.034 | E43: 17.8695 | F43: 0.607563 | I43: 0
B44: Carpinteiro de formas com encargos complementares | C44: H | D44: 0.172 | E44: 21.185 | F44: 3.64382 | I44: 0
B45: Serra circular de bancada com motor elétrico potência de 5HP, com coifa para disco 10" - CHP diurno. af_08/2015 | C45: CHP | D45: 0.02 | E45: 18.6295 | F45: 0.37259 | I45: 0
B46: Serra circular de bancada com motor elétrico potência de 5HP, com coifa para disco 10" - CHI diurno. af_08/2015 | C46: CHI | D46: 0.014 | E46: 16.777 | F46: 0.234878 | I46: 0
I47: 0
A48: ARGAMASSA TRAÇO 1:2:8 (EM VOLUME DE CIMENTO, CAL E AREIA MÉDIA ÚMIDA) PARA EMBOÇO/MASSA ÚNICA/ASSENTAMENTO DE ALVENARIA DE VEDAÇÃO, PREPARO MECÂNICO COM BETONEIRA 400 L. AF_08/2019 | C48: M3 | I48: 673.878
I49: 673.878
B50: Areia media - posto jazida/fornecedor (retirado na jazida, sem transporte) | C50: M3 | D50: 1.16 | E50: 93.8125 | F50: 108.8225 | G50: =SUM(F50:F57) -> 412.4600978 | I50: 673.878
B51: Cal hidratada CH-I para argamassas | C51: KG | D51: 174.1 | E51: 0.7315 | F51: 127.35415 | I51: 673.878
B52: Cimento Portland composto CP II-32 | C52: KG | D52: 195.86 | E52: 0.3895 | F52: 76.28747 | I52: 673.878
B53: Operador de betoneira estacionária/misturador com encargos complementares | C53: H | D53: 4.5 | E53: 15.96 | F53: 71.82 | I53: 673.878
B54: Betoneira capacidade nominal de 400 L, capacidade de mistura 280 L, motor elétrico trifásico potência de 2 cv, sem carregador - CHP diurno. af_10/2014 | C54: CHP | D54: 1.05 | E54: 1.1685 | F54: 1.226925 | I54: 673.878
B55: Betoneira capacidade nominal de 400 L, capacidade de mistura 280 L, motor elétrico trifásico potência de 2 cv, sem carregador - CHI diurno. af_10/2014 | C55: CHI | D55: 3.45 | E55: 0.247 | F55: 0.85215 | I55: 673.878
B56: CARGA, MANOBRAS E DESCARGA DE AREIA, BRITA, PEDRA DE MAO E SOLOS COM CAMINHAO BASCULANTE 6 M3 (DESCARGA LIVRE) | C56: M3 | D56: =ROUND(1*D50,4) -> 1.16 | E56: 0.758366 | F56: 0.87970456 | I56: 673.878
B57: TRANSPORTE COM CAMINHÃO BASCULANTE DE 6 M3, EM VIA URBANA PAVIMENTADA, DMT ATÉ 30 KM (UNIDADE: M3xKM). AF_01/2018 | C57: M3xKM | D57: =ROUND(D50*20,4) -> 23.2 | E57: 1.0869482 | F57: 25.21719824 | I57: 673.878
I58: 673.878
B59: Obs.: Considerando fornecedor de areia a 20 km do Senado Federal. | I59: 673.878
I60: 673.878
A61: Contrapiso em argamassa traço 1:4 (cimento e areia), preparo mecânico com betoneira 400 l, aplicado em áreas secas sobre laje, aderido, espessura 3cm. AF_06/2014 | C61: M2 | I61: 0
I62: 0
B63: Cimento Portland composto CP II-32 | C63: KG | D63: 0.5 | E63: 0.3895 | F63: 0.19475 | G63: =SUM(F63:F67) -> 32.77108172 | I63: 0
B64: Aditivo adesivo liquido para argamassas de revestimentos cimenticios | C64: L | D64: 0.435 | E64: 11.419 | F64: 4.967265 | I64: 0
B65: ARGAMASSA TRAÇO 1:4 (EM VOLUME DE CIMENTO E AREIA MÉDIA ÚMIDA) PARA CONTRAPISO, PREPARO MECÂNICO COM BETONEIRA 400 L. AF_08/2019 | C65: M3 | D65: 0.0431 | E65: 416.9855387 | F65: 17.97207672 | I65: 0
B66: Pedreiro com encargos complementares | C66: H | D66: 0.33 | E66: 21.3275 | F66: 7.038075 | I66: 0
B67: Servente com encargos complementares | C67: H | D67: 0.165 | E67: 15.751 | F67: 2.598915 | I67: 0
I68: 0
A69: ARGAMASSA TRAÇO 1:3 (EM VOLUME DE CIMENTO E AREIA GROSSA ÚMIDA) PARA CHAPISCO CONVENCIONAL, PREPARO MANUAL. AF_08/2019 | C69: M3 | I69: 5.796
F70: =IF(ISNUMBER(E70),E70*$D70,"") ->  | I70: 5.796
B71: Areia grossa - posto jazida/fornecedor (retirado na jazida, sem transporte) | C71: M3 | D71: 0.94 | E71: 113.2495 | F71: 106.45453 | G71: =SUM(F71:F75) -> 465.7924252 | I71: 5.796
B72: Cimento Portland composto CP II-32 | C72: KG | D72: 422.63 | E72: 0.3895 | F72: 164.614385 | I72: 5.796
B73: Servente com encargos complementares | C73: H | D73: 11.02 | E73: 15.751 | F73: 173.57602 | I73: 5.796
B74: CARGA, MANOBRAS E DESCARGA DE AREIA, BRITA, PEDRA DE MAO E SOLOS COM CAMINHAO BASCULANTE 6 M3 (DESCARGA LIVRE) | C74: M3 | D74: =ROUND(1*D71,4) -> 0.94 | E74: 0.758366 | F74: 0.71286404 | I74: 5.796
B75: TRANSPORTE COM CAMINHÃO BASCULANTE DE 6 M3, EM VIA URBANA PAVIMENTADA, DMT ATÉ 30 KM (UNIDADE: M3xKM). AF_01/2018 | C75: M3xKM | D75: =ROUND(D71*20,4) -> 18.8 | E75: 1.0869482 | F75: 20.43462616 | I75: 5.796
I76: 5.796
B77: Obs.: Considerando fornecedor de areia a 20 km do Senado Federal. | I77: 5.796
I78: 5.796
A79: ARGAMASSA INDUSTRIALIZADA PARA CHAPISCO COLANTE, PREPARO COM MISTURADOR DE EIXO HORIZONTAL DE 300 KG. AF_08/2019 | C79: M3 | I79: 0
I80: 0
B81: Argamassa industrializada para chapisco colante | C81: KG | D81: 1981.23 | E81: 0.7885 | F81: 1562.199855 | G81: =SUM(F81:F84) -> 1643.504845 | I81: 0
B82: Operador de betoneira estacionária/misturador com encargos complementares | C82: H | D82: 4.72 | E82: 15.96 | F82: 75.3312 | I82: 0
B83: Misturador de argamassa, eixo horizontal, capacidade de mistura 300 kg, motor elétrico potência 5 cv - CHP diurno. af_06/2014 | C83: CHP | D83: 1.1 | E83: 3.211 | F83: 3.5321 | I83: 0
B84: Misturador de argamassa, eixo horizontal, capacidade de mistura 300 kg, motor elétrico potência 5 cv - CHI diurno. af_06/2014 | C84: CHI | D84: 3.62 | E84: 0.6745 | F84: 2.44169 | I84: 0
I85: 0
A86: ARGAMASSA TRAÇO 1:4 (EM VOLUME DE CIMENTO E AREIA MÉDIA ÚMIDA) PARA CONTRAPISO, PREPARO MANUAL. AF_08/2019 | C86: M3 | I86: 21.75
I87: 21.75
B88: Areia media - posto jazida/fornecedor (retirado na jazida, sem transporte) | C88: M3 | D88: 1.35 | E88: 93.8125 | F88: 126.646875 | G88: =SUM(F88:F92) -> 507.6532005 | I88: 21.75
B89: Cimento Portland composto CP II-32 | C89: KG | D89: 454.58 | E89: 0.3895 | F89: 177.05891 | I89: 21.75
B90: Servente com encargos complementares | C90: H | D90: 11.02 | E90: 15.751 | F90: 173.57602 | I90: 21.75
B91: CARGA, MANOBRAS E DESCARGA DE AREIA, BRITA, PEDRA DE MAO E SOLOS COM CAMINHAO BASCULANTE 6 M3 (DESCARGA LIVRE) | C91: M3 | D91: =ROUND(1*D88,4) -> 1.35 | E91: 0.758366 | F91: 1.0237941 | I91: 21.75
B92: TRANSPORTE COM CAMINHÃO BASCULANTE DE 6 M3, EM VIA URBANA PAVIMENTADA, DMT ATÉ 30 KM (UNIDADE: M3xKM). AF_01/2018 | C92: M3xKM | D92: =ROUND(D88*20,4) -> 27 | E92: 1.0869482 | F92: 29.3476014 | I92: 21.75
I93: 21.75
B94: Obs.: Considerando fornecedor de areia a 20 km do Senado Federal. | I94: 21.75
I95: 21.75
A96: ARGAMASSA TRAÇO 1:4 (EM VOLUME DE CIMENTO E AREIA MÉDIA ÚMIDA), PREPARO MANUAL. AF_08/2019 | C96: M3 | I96: 0
I97: 0
B98: Areia media - posto jazida/fornecedor (retirado na jazida, sem transporte) | C98: M3 | D98: 1.15 | E98: 93.8125 | F98: 107.884375 | G98: =SUM(F98:F102) -> 416.0579245 | I98: 0
B99: Cimento Portland composto CP II-32 | C99: KG | D99: 389.54 | E99: 0.3895 | F99: 151.72583 | I99: 0
B100: Servente com encargos complementares | C100: H | D100: 8.29 | E100: 15.751 | F100: 130.57579 | I100: 0
B101: CARGA, MANOBRAS E DESCARGA DE AREIA, BRITA, PEDRA DE MAO E SOLOS COM CAMINHAO BASCULANTE 6 M3 (DESCARGA LIVRE) | C101: M3 | D101: =ROUND(1*D98,4) -> 1.15 | E101: 0.758366 | F101: 0.8721209 | I101: 0
B102: TRANSPORTE COM CAMINHÃO BASCULANTE DE 6 M3, EM VIA URBANA PAVIMENTADA, DMT ATÉ 30 KM (UNIDADE: M3xKM). AF_01/2018 | C102: M3xKM | D102: =ROUND(D98*20,4) -> 23 | E102: 1.0869482 | F102: 24.9998086 | I102: 0
I103: 0
B104: Obs.: Considerando fornecedor de areia a 20 km do Senado Federal. | I104: 0
I105: 0
A106: Fixação de tubos verticais de PPR diâmetros menores ou iguais a 40 mm com abraçadeira metálica rígida tipo D 1/2", fixada em perfilado em alvenaria. af_05/2015 | C106: M | I106: 0
I107: 0
B108: Abracadeira em aco para amarracao de eletrodutos, tipo D, com 1/2" e parafuso de fixacao | C108: UN | D108: 0.333 | E108: 1.0355 | F108: 0.3448215 | G108: =SUM(F108:F110) -> 1.158924 | I108: 0
B109: Auxiliar de encanador ou bombeiro hidráulico com encargos complementares | C109: H | D109: 0.005 | E109: 16.321 | F109: 0.081605 | I109: 0
B110: Encanador ou bombeiro hidráulico com encargos complementares | C110: H | D110: 0.035 | E110: 20.9285 | F110: 0.7324975 | I110: 0
I111: 0
A112: Luva de emenda para eletroduto, aço galvanizado, DN 20 mm (3/4''), aparente, instalada em parede - fornecimento e instalação. af_11/2016_p | C112: UN | I112: 0
I113: 0
B114: Luva para eletroduto, em aco galvanizado eletrolitico, diametro de 20 mm (3/4") | C114: UN | D114: 1 | E114: 1.615 | F114: 1.615 | G114: =SUM(F114:F116) -> 8.61140515 | I114: 0
B115: Auxiliar de eletricista com encargos complementares | C115: H | D115: 0.1827 | E115: 16.7675 | F115: 3.06342225 | I115: 0
B116: Eletricista com encargos complementares | C116: H | D116: 0.1827 | E116: 21.527 | F116: 3.9329829 | I116: 0
I117: 0
A118: Luva de emenda para eletroduto, aço galvanizado, DN 25 mm (1''), aparente, instalada em parede - fornecimento e instalação. af_11/2016_p | C118: UN | I118: 0
I119: 0
B120: Luva para eletroduto, em aco galvanizado eletrolitico, diametro de 25 mm (1") | C120: UN | D120: 1 | E120: 1.881 | F120: 1.881 | G120: =SUM(F120:F122) -> 9.66627185 | I120: 0
B121: Auxiliar de eletricista com encargos complementares | C121: H | D121: 0.2033 | E121: 16.7675 | F121: 3.40883275 | I121: 0
B122: Eletricista com encargos complementares | C122: H | D122: 0.2033 | E122: 21.527 | F122: 4.3764391 | I122: 0
I123: 0
A124: Luva de emenda para eletroduto, aço galvanizado, DN 32 mm (1 1/4''), aparente, instalada em parede - fornecimento e instalação. af_11/2016_p | C124: UN | I124: 0
I125: 0
B126: Luva para eletroduto, em aco galvanizado eletrolitico, diametro de 32 mm (1 1/4") | C126: UN | D126: 1 | E126: 3.3345 | F126: 3.3345 | G126: =SUM(F126:F128) -> 12.2264829 | I126: 0
B127: Auxiliar de eletricista com encargos complementares | C127: H | D127: 0.2322 | E127: 16.7675 | F127: 3.8934135 | I127: 0
B128: Eletricista com encargos complementares | C128: H | D128: 0.2322 | E128: 21.527 | F128: 4.9985694 | I128: 0
I129: 0
A130: Luva de emenda para eletroduto, aço galvanizado, DN 40 mm (1 1/2''), aparente, instalada em parede - fornecimento e instalação. af_11/2016_p | C130: UN | I130: 0
I131: 0
B132: Luva para eletroduto, em aco galvanizado eletrolitico, diametro de 40 mm (1 1/2") | C132: UN | D132: 1 | E132: 4.826 | F132: 4.826 | G132: =SUM(F132:F134) -> 14.97787195 | I132: 0
B133: Auxiliar de eletricista com encargos complementares | C133: H | D133: 0.2651 | E133: 16.7675 | F133: 4.44506425 | I133: 0
B134: Eletricista com encargos complementares | C134: H | D134: 0.2651 | E134: 21.527 | F134: =IF(ISNUMBER(E134),E134*$D134,"") -> 5.7068077 | I134: 0
I135: 0
A136: Luva de emenda para eletroduto, aço galvanizado, DN 50 mm (2''), aparente, instalada em parede - fornecimento e instalação. af_11/2016_p | C136: UN | I136: 0
I137: 0
B138: Luva para eletroduto, em aco galvanizado eletrolitico, diametro de 50 mm (2") | C138: UN | D138: 1 | E138: 6.7355 | F138: 6.7355 | G138: =SUM(F138:F140) -> 16.88737195 | I138: 0
B139: Auxiliar de eletricista com encargos complementares | C139: H | D139: 0.2651 | E139: 16.7675 | F139: 4.44506425 | I139: 0
B140: Eletricista com encargos complementares | C140: H | D140: 0.2651 | E140: 21.527 | F140: 5.7068077 | I140: 0
I141: 0
A142: Fixação de tubos verticais de PPR diâmetros maiores que 40 mm e menores ou iguais a 75 mm com abraçadeira metálica rígida tipo D 1 1/2", fixada em perfilado em alvenaria. af_05/2015 | C142: M | I142: 0
I143: 0
B144: Abracadeira em aco para amarracao de eletrodutos, tipo D, com 1 1/2" e parafuso de fixacao | C144: UN | D144: 0.333 | E144: 2.128 | F144: 0.708624 | G144: =SUM(F144:F146) -> 2.2577225 | I144: 0
B145: Auxiliar de encanador ou bombeiro hidráulico com encargos complementares | C145: H | D145: 0.009 | E145: 16.321 | F145: 0.146889 | I145: 0
B146: Encanador ou bombeiro hidráulico com encargos complementares | C146: H | D146: 0.067 | E146: 20.9285 | F146: 1.4022095 | I146: 0
I147: 0
A148: Fixação de tubos verticais de PPR diâmetros maiores que 40 mm e menores ou iguais a 75 mm com abraçadeira metálica rígida tipo D 2", fixada em perfilado em alvenaria. af_05/2015 | C148: M | I148: 0
I149: 0
B150: Abracadeira em aco para amarracao de eletrodutos, tipo D, com 2" e parafuso de fixacao | C150: UN | D150: 0.333 | E150: 2.356 | F150: 0.784548 | G150: =SUM(F150:F152) -> 2.3336465 | I150: 0
B151: Auxiliar de encanador ou bombeiro hidráulico com encargos complementares | C151: H | D151: 0.009 | E151: 16.321 | F151: 0.146889 | I151: 0
B152: Encanador ou bombeiro hidráulico com encargos complementares | C152: H | D152: 0.067 | E152: 20.9285 | F152: 1.4022095 | I152: 0
I153: 0
A154: ARGAMASSA TRAÇO 1:2:9 (EM VOLUME DE CIMENTO, CAL E AREIA MÉDIA ÚMIDA) PARA EMBOÇO/MASSA ÚNICA/ASSENTAMENTO DE ALVENARIA DE VEDAÇÃO, PREPARO MECÂNICO COM BETONEIRA 600 L. AF_08/2019 | C154: M3 | I154: 0
I155: 0
B156: Areia media - posto jazida/fornecedor (retirado na jazida, sem transporte) | C156: M3 | D156: 1.18 | E156: 93.8125 | F156: 110.69875 | G156: =SUM(F156:F164) -> 397.8322144 | I156: 0
B157: Cal hidratada CH-I para argamassas | C157: KG | D157: 157.44 | E157: 0.7315 | F157: 115.16736 | I157: 0
B158: Cimento Portland composto CP II-32 | C158: KG | D158: 177.12 | E158: 0.3895 | F158: 68.98824 | I158: 0
B159: Servente com encargos complementares | C159: H | D159: 0.79 | E159: 15.751 | F159: 12.44329 | I159: 0
B160: Operador de betoneira estacionária/misturador com encargos complementares | C160: H | D160: 3.65 | E160: 15.96 | F160: 58.254 | I160: 0
B161: Betoneira capacidade nominal de 600 L, capacidade de mistura 360 L, motor elétrico trifásico potência de 4 cv, sem carregador - CHP diurno. af_11/2014 | C161: CHP | D161: 0.85 | E161: 3.3345 | F161: 2.834325 | I161: 0
B162: Betoneira capacidade nominal de 600 L, capacidade de mistura 360 L, motor elétrico trifásico potência de 4 cv, sem carregador - CHI diurno. af_11/2014 | C162: CHI | D162: 2.8 | E162: 1.0355 | F162: 2.8994 | I162: 0
B163: CARGA, MANOBRAS E DESCARGA DE AREIA, BRITA, PEDRA DE MAO E SOLOS COM CAMINHAO BASCULANTE 6 M3 (DESCARGA LIVRE) | C163: M3 | D163: =ROUND(1*D156,4) -> 1.18 | E163: 0.758366 | F163: 0.89487188 | I163: 0
B164: TRANSPORTE COM CAMINHÃO BASCULANTE DE 6 M3, EM VIA URBANA PAVIMENTADA, DMT ATÉ 30 KM (UNIDADE: M3xKM). AF_01/2018 | C164: M3xKM | D164: =ROUND(D156*20,4) -> 23.6 | E164: 1.0869482 | F164: 25.65197752 | I164: 0
I165: 0
B166: Obs.: Considerando fornecedor de areia a 20 km do Senado Federal. | I166: 0
I167: 0
A168: ARGAMASSA TRAÇO 1:4 (EM VOLUME DE CIMENTO E AREIA MÉDIA ÚMIDA) PARA CONTRAPISO, PREPARO MECÂNICO COM BETONEIRA 400 L. AF_08/2019 | C168: M3 | I168: 1203.8812
I169: 1203.8812
B170: Areia media - posto jazida/fornecedor (retirado na jazida, sem transporte) | C170: M3 | D170: 1.36 | E170: 93.8125 | F170: 127.585 | G170: =SUM(F170:F176) -> 416.9381888 | I170: 1203.8812
B171: Cimento Portland composto CP II-32 | C171: KG | D171: 459.85 | E171: 0.3895 | F171: 179.111575 | I171: 1203.8812
B172: Operador de betoneira estacionária/misturador com encargos complementares | C172: H | D172: 4.85 | E172: 15.96 | F172: 77.406 | I172: 1203.8812
B173: Betoneira capacidade nominal de 400 L, capacidade de mistura 280 L, motor elétrico trifásico potência de 2 cv, sem carregador - CHP diurno. af_10/2014 | C173: CHP | D173: 1.13 | E173: 1.1685 | F173: 1.320405 | I173: 1203.8812
B174: Betoneira capacidade nominal de 400 L, capacidade de mistura 280 L, motor elétrico trifásico potência de 2 cv, sem carregador - CHI diurno. af_10/2014 | C174: CHI | D174: 3.72 | E174: 0.247 | F174: 0.91884 | I174: 1203.8812
B175: CARGA, MANOBRAS E DESCARGA DE AREIA, BRITA, PEDRA DE MAO E SOLOS COM CAMINHAO BASCULANTE 6 M3 (DESCARGA LIVRE) | C175: M3 | D175: =ROUND(1*D170,4) -> 1.36 | E175: 0.758366 | F175: 1.03137776 | I175: 1203.8812
B176: TRANSPORTE COM CAMINHÃO BASCULANTE DE 6 M3, EM VIA URBANA PAVIMENTADA, DMT ATÉ 30 KM (UNIDADE: M3xKM). AF_01/2018 | C176: M3xKM | D176: =ROUND(D170*20,4) -> 27.2 | E176: 1.0869482 | F176: 29.56499104 | I176: 1203.8812
I177: 1203.8812
B178: Obs.: Considerando fornecedor de areia a 20 km do Senado Federal. | I178: 1203.8812
I179: 1203.8812
A180: UMIDIFICAÇÃO DE MATERIAL PARA VALAS COM CAMINHÃO PIPA 10000L. AF_11/2016 | C180: M3 | I180: 0
I181: 0
B182: CAMINHÃO PIPA 10.000 L TRUCADO, PESO BRUTO TOTAL 23.000 KG, CARGA ÚTIL MÁXIMA 15.935 KG, DISTÂNCIA ENTRE EIXOS 4,8 M, POTÊNCIA 230 CV, INCLUSIVE TANQUE DE AÇO PARA TRANSPORTE DE ÁGUA - CHP DIURNO. AF_06/2014 | C182: CHP | D182: 0.006 | E182: 155.5055 | F182: 0.933033 | G182: =SUM(F182:F184) -> 1.176708 | I182: 0
B183: CAMINHÃO PIPA 10.000 L TRUCADO, PESO BRUTO TOTAL 23.000 KG, CARGA ÚTIL MÁXIMA 15.935 KG, DISTÂNCIA ENTRE EIXOS 4,8 M, POTÊNCIA 230 CV, INCLUSIVE TANQUE DE AÇO PARA TRANSPORTE DE ÁGUA - CHI DIURNO. AF_06/2014 | C183: CHI | D183: 0.003 | E183: 33.972 | F183: 0.101916 | I183: 0
B184: SERVENTE COM ENCARGOS COMPLEMENTARES | C184: H | D184: 0.009 | E184: 15.751 | F184: 0.141759 | I184: 0
I185: 0
A186: CORTE E DOBRA DE AÇO CA-50, DIÂMETRO DE 8,0 MM, UTILIZADO EM ESTRUTURAS DIVERSAS, EXCETO LAJES. AF_12/2015 | C186: KG | I186: 0
I187: 0
B188: ACO CA-50, 8,0 MM, VERGALHAO | C188: KG | D188: 1.11 | E188: 5.1205 | F188: 5.683755 | G188: =SUM(F188:F190) -> 6.2118334 | I188: 0
B189: AJUDANTE DE ARMADOR COM ENCARGOS COMPLEMENTARES | C189: H | D189: 0.0032 | E189: 16.4635 | F189: 0.0526832 | I189: 0
B190: ARMADOR COM ENCARGOS COMPLEMENTARES | C190: H | D190: 0.0224 | E190: 21.223 | F190: 0.4753952 | I190: 0
I191: 0
A192: CORTE E DOBRA DE AÇO CA-50, DIÂMETRO DE 12,5 MM, UTILIZADO EM ESTRUTURAS DIVERSAS, EXCETO LAJES. AF_12/2015 | C192: KG | I192: 0
I193: 0
B194: ACO CA-50, 12,5 MM OU 16,0 MM, VERGALHAO | C194: KG | D194: 1.11 | E194: 4.18 | F194: 4.6398 | G194: =SUM(F194:F196) -> 4.8048245 | I194: 0
B195: AJUDANTE DE ARMADOR COM ENCARGOS COMPLEMENTARES | C195: H | D195: 0.001 | E195: 16.4635 | F195: 0.0164635 | I195: 0
B196: ARMADOR COM ENCARGOS COMPLEMENTARES | C196: H | D196: 0.007 | E196: 21.223 | F196: 0.148561 | I196: 0
I197: 0
A198: CORTE E DOBRA DE AÇO CA-50, DIÂMETRO DE 20,0 MM, UTILIZADO EM ESTRUTURAS DIVERSAS, EXCETO LAJES. AF_12/2015 | C198: KG | F198: =IF(ISNUMBER(E198),E198*$D198,"") ->  | I198: 0
I199: 0
B200: ACO CA-50, 20,0 MM OU 25,0 MM, VERGALHAO | C200: KG | D200: 1.14 | E200: 4.8165 | F200: 5.49081 | G200: =SUM(F200:F201) -> 5.533256 | I200: 0
B201: ARMADOR COM ENCARGOS COMPLEMENTARES | C201: H | D201: 0.002 | E201: 21.223 | F201: 0.042446 | I201: 0
I202: 0
... 159 more rows

Sheet Comp.Aux2
A1: Manutenção Civil
A2: COMPOSIÇÕES DE CUSTO UNITÁRIO AUXILIARES DE 2º NÍVEL
A5: DESCRIÇÃO | B5: DISCRIMINAÇÃO DA COMPOSIÇÃO | C5: UNIDADE | D5: COEFICIENTE | E5: CUSTO UNITÁRIO | F5: CUSTO TOTAL | G5: TOTAL | I5: QTD
A6: TRANSPORTE COM CAMINHÃO BASCULANTE DE 6 M3, EM VIA URBANA PAVIMENTADA, DMT ATÉ 30 KM (UNIDADE: M3XKM). AF_01/2018 | C6: M3xKM | F6: =IF(ISNUMBER(E6),ROUND(E6*$D6,2),"") ->  | I6: 78587.29454
I7: 78587.29454
B8: CAMINHÃO BASCULANTE 6 M3 TOCO, PESO BRUTO TOTAL 16.000 KG, CARGA ÚTIL MÁXIMA 11.130 KG, DISTÂNCIA ENTRE EIXOS 5,36 M, POTÊNCIA 185 CV, INCLUSIVE CAÇAMBA METÁLICA - CHP DIURNO. AF_06/2014 | C8: CHP | D8: 0.0104 | E8: 96.463 | F8: 1 | G8: =SUM(F8:F9) -> 1.08 | I8: 78587.29454
B9: CAMINHÃO BASCULANTE 6 M3 TOCO, PESO BRUTO TOTAL 16.000 KG, CARGA ÚTIL MÁXIMA 11.130 KG, DISTÂNCIA ENTRE EIXOS 5,36 M, POTÊNCIA 185 CV, INCLUSIVE CAÇAMBA METÁLICA - CHI DIURNO. AF_06/2014 | C9: CHI | D9: 0.0026 | E9: 32.205 | F9: 0.08 | I9: 78587.29454
I10: 78587.29454
A11: CORTE E DOBRA DE AÇO CA-60, DIÂMETRO DE 4,2 MM, UTILIZADO EM LAJE. AF_12/2015 | C11: KG | I11: 0
I12: 0
B13: ACO CA-60, 4,2 MM, OU 5,0 MM, OU 6,0 MM, OU 7,0 MM, VERGALHAO | C13: KG | D13: 1.07 | E13: 4.56 | F13: 4.88 | G13: =SUM(F13:F15) -> 7.08 | I13: 0
B14: AJUDANTE DE ARMADOR COM ENCARGOS COMPLEMENTARES | C14: H | D14: 0.0131 | E14: 16.4635 | F14: 0.22 | I14: 0
B15: ARMADOR COM ENCARGOS COMPLEMENTARES | C15: H | D15: 0.0933 | E15: 21.223 | F15: 1.98 | I15: 0
I16: 0
A17: CARGA, MANOBRAS E DESCARGA DE AREIA, BRITA, PEDRA DE MAO E SOLOS COM CAMINHAO BASCULANTE 6 M3 (DESCARGA LIVRE) | C17: M3 | I17: 3929.364727
I18: 3929.364727
B19: CAMINHÃO BASCULANTE 6 M3, PESO BRUTO TOTAL 16.000 KG, CARGA ÚTIL MÁXIMA 13.071 KG, DISTÂNCIA ENTRE EIXOS 4,80 M, POTÊNCIA 230 CV INCLUSIVE CAÇAMBA METÁLICA - CHP DIURNO. AF_06/2014 | C19: CHP | D19: 0.007 | E19: 108.338 | F19: 0.76 | G19: =SUM(F19:F19) -> 0.76 | I19: 3929.364727
I20: 3929.364727
A21: ARGAMASSA TRAÇO 1:4 (EM VOLUME DE CIMENTO E AREIA MÉDIA ÚMIDA) PARA CONTRAPISO, PREPARO MECÂNICO COM BETONEIRA 400 L. AF_08/2019 | C21: M3 | I21: 0
I22: 0
B23: Areia media - posto jazida/fornecedor (retirado na jazida, sem transporte) | C23: M3 | D23: 1.36 | E23: 93.8125 | F23: 127.59 | G23: =SUM(F23:F30) -> 417 | I23: 0
B24: Cimento Portland composto CP II-32 | C24: KG | D24: 459.85 | E24: 0.3895 | F24: 179.11 | I24: 0
B25: Operador de betoneira estacionária/misturador com encargos complementares | C25: H | D25: 4.85 | E25: 15.96 | F25: 77.41 | I25: 0
B26: Betoneira capacidade nominal de 400 L, capacidade de mistura 280 L, motor elétrico trifásico potência de 2 cv, sem carregador - CHP diurno. af_10/2014 | C26: CHP | D26: 1.13 | E26: 1.1685 | F26: 1.32 | I26: 0
B27: Betoneira capacidade nominal de 400 L, capacidade de mistura 280 L, motor elétrico trifásico potência de 2 cv, sem carregador - CHI diurno. af_10/2014 | C27: CHI | D27: 3.72 | E27: 0.247 | F27: 0.92 | I27: 0
B28: CAMINHÃO BASCULANTE 6 M3, PESO BRUTO TOTAL 16.000 KG, CARGA ÚTIL MÁXIMA 13.071 KG, DISTÂNCIA ENTRE EIXOS 4,80 M, POTÊNCIA 230 CV INCLUSIVE CAÇAMBA METÁLICA - CHP DIURNO. AF_06/2014 | C28: CHP | D28: =ROUND(0.007*D23,4) -> 0.0095 | E28: 108.338 | F28: 1.03 | I28: 0
B29: CAMINHÃO BASCULANTE 6 M3 TOCO, PESO BRUTO TOTAL 16.000 KG, CARGA ÚTIL MÁXIMA 11.130 KG, DISTÂNCIA ENTRE EIXOS 5,36 M, POTÊNCIA 185 CV, INCLUSIVE CAÇAMBA METÁLICA - CHP DIURNO. AF_06/2014 | C29: CHP | D29: =ROUND(0.01042*20*D23,4) -> 0.2834 | E29: 96.463 | F29: 27.34 | I29: 0
B30: CAMINHÃO BASCULANTE 6 M3 TOCO, PESO BRUTO TOTAL 16.000 KG, CARGA ÚTIL MÁXIMA 11.130 KG, DISTÂNCIA ENTRE EIXOS 5,36 M, POTÊNCIA 185 CV, INCLUSIVE CAÇAMBA METÁLICA - CHI DIURNO. AF_06/2014 | C30: CHI | D30: =ROUND(0.0026*20*D23,4) -> 0.0707 | E30: 32.205 | F30: 2.28 | I30: 0
I31: 0
B32: Obs.: Considerando fornecedor de areia a 20 km do Senado Federal. | I32: 0
B33: Obs.2: Inclusão de composições (abertas) Sinapi 72888 e 97914. | I33: 0

Sheet BDI
A1: Manutenção Civil
A2: BENEFÍCIOS E DESPESAS INDIRETAS - BDI
A5: BDI Edificações | F5: BDI mero fornecimento
A6: Componentes do BDI | B6: Cálculo sem CPRB | C6: Cálculo com CPRB | F6: Componentes do BDI | G6: Cálculo sem CPRB | H6: Cálculo com CPRB
B7: não-desonerado | C7: desonerado | G7: não-desonerado | H7: desonerado
B8: % considerado | C8: % considerado | G8: % considerado | H8: % considerado
A9: AC | B9: 0.035 | C9: 0.035 | F9: AC | G9: 0.0175 | H9: 0.0175
A10: S+G | B10: 0.008 | C10: 0.008 | F10: S+G | G10: 0.0039 | H10: 0.0039
A11: R | B11: 0.0125 | C11: 0.0125 | F11: R | G11: 0.0056 | H11: 0.0056
A12: DF | B12: 0.0076 | C12: 0.0076 | F12: DF | G12: 0.0085 | H12: 0.0085
A13: L | B13: 0.0678 | C13: 0.0678 | F13: L | G13: 0.035 | H13: 0.035
A14: PIS | B14: 0.0065 | C14: 0.0065 | F14: PIS | G14: 0.0065 | H14: 0.0065
A15: COFINS | B15: 0.03 | C15: 0.03 | F15: COFINS | G15: 0.03 | H15: 0.03
A16: CPRB | B16: 0 | C16: 0.045 | F16: CPRB | G16: 0 | H16: 0.045
A17: ISS | B17: 0.01 | C17: 0.01 | F17: ISS | G17: 0 | H17: 0
A18: BDI Edificações | B18: =ROUND(((1+B9+B10+B11)*(1+B12)*(1+B13))/(1-(B14+B15+B16+B17))-1,4) -> 0.191 | C18: =ROUND(((1+C9+C10+C11)*(1+C12)*(1+C13))/(1-(C14+C15+C16+C17))-1,4) -> 0.25 | F18: BDI mero fornecimento | G18: =ROUND(((1+G9+G10+G11)*(1+G12)*(1+G13))/(1-(G14+G15+G16+G17))-1,4) -> 0.1126 | H18: =ROUND(((1+H9+H10+H11)*(1+H12)*(1+H13))/(1-(H14+H15+H16+H17))-1,4) -> 0.1671
A20: Referências TCU - BDI Edificações | F20: Referências TCU - BDI mero fornecimento
A21: Componentes do BDI | B21: 1º Quartil | C21: Médio | D21: 3º Quartil | F21: Componentes do BDI | G21: 1º Quartil | H21: Médio | I21: 3º Quartil
A22: AC | B22: 0.03 | C22: 0.04 | D22: 0.055 | F22: AC | G22: 0.015 | H22: 0.0345 | I22: 0.0449
A23: S+G | B23: 0.008 | C23: 0.008 | D23: 0.01 | F23: S+G | G23: 0.003 | H23: 0.0048 | I23: 0.0082
A24: R | B24: 0.0097 | C24: 0.0127 | D24: 0.0127 | F24: R | G24: 0.0056 | H24: 0.0085 | I24: 0.0089
A25: DF | B25: 0.0059 | C25: 0.0123 | D25: 0.0139 | F25: DF | G25: 0.0085 | H25: 0.0085 | I25: 0.0111
A26: L | B26: 0.0616 | C26: 0.074 | D26: 0.0896 | F26: L | G26: 0.035 | H26: 0.0511 | I26: 0.0622
A27: BDI Edificações | B27: 0.2034 | C27: 0.2212 | D27: 0.25 | F27: BDI mero fornecimento | G27: 0.111 | H27: 0.1402 | I27: 0.168
A49: Fontes: Acórdãos 2.369/2011-TCU-Plenário e 2.622/2013-TCU-Plenário.
